Workbook

Sheet Resumo do Orçamento
D1: Obra | E1: Bancos | G1: B.D.I. | I1: Encargos Sociais
D2: Execução de serviços de pavimentação em paralelepípedo em ruas no município de Penedo/AL | E2: SINAPI - 04/2024 - Alagoas SICRO3 - 01/2024 - Alagoas ORSE - 03/2024 - Sergipe | G2: 27,46% | I2: Desonerado: Horista: 85,20% Mensalista: 46,48%
A3: Planilha Orçamentária Resumida
A4: Item | D4: Descrição | J4: Total
A5: 1 | D5: SERVIÇOS PRELIMINARES | J5: ='Orçamento Sintetico SD'!I5 -> 96848.43
A6: 2 | D6: TERRAPLENAGEM | J6: ='Orçamento Sintetico SD'!I11 -> 27412.34
A7: 3 | D7: PAVIMENTAÇÃO | J7: ='Orçamento Sintetico SD'!I16 -> 583322.73
A8: 4 | D8: DRENAGEM | J8: ='Orçamento Sintetico SD'!I22 -> 212139.2
A9: 5 | D9: SINALIZAÇÃO | J9: ='Orçamento Sintetico SD'!I26 -> 497.9
A10: 6 | D10: SERVIÇOS COMPLEMENTARES | J10: ='Orçamento Sintetico SD'!I29 -> 8229.05
F13: Total Geral | H13: =SUM(J5:J10) -> 928449.65

Sheet Orçamento Sintetico SD
D1: Obra | E1: Bancos | G1: B.D.I. | I1: Encargos Sociais
D2: SEM DESONERAÇÃO -Execução de serviços de pavimentação em paralelepípedo em ruas do município de Penedo/AL | E2: SINAPI - 04/2024 - Alagoas SICRO3 - 01/2024 - Alagoas ORSE - 03/2024 - Sergipe | G2: 21,35% | I2: Não Desonerado: Horista: 115,22% Mensalista: 70,31%
A3: Orçamento Sintético
A4: Item | B4: Código | C4: Banco | D4: Descrição | E4: Und | F4: Quant. | G4: Valor Unit | H4: Valor Unit com BDI | I4: Total
A5: 1 | D5: SERVIÇOS PRELIMINARES | I5: =SUM(I6:I10) -> 96848.43
A6: 1.1 | B6: 103689 | C6: SINAPI | D6: FORNECIMENTO E INSTALAÇÃO DE PLACA DE OBRA COM CHAPA GALVANIZADA E ESTRUTURA DE MADEIRA. AF_03/2022_PS | E6: m² | F6: =Memória!G13 -> 12.96 | G6: 312.7 | H6: =TRUNC(G6 * (1 + 21.35 / 100), 2) -> 379.46 | I6: =TRUNC(F6 * H6, 2) -> 4917.8 | J6: Obras complementares | L6: Terraplanagem | M6: =I11/I33 -> 0.02952485361 | N6: 0.02952 | O6: =TRUNC(N6,5) -> 0.02952
A7: 1.2 | B7: 103689 | C7: SINAPI | D7: FORNECIMENTO E INSTALAÇÃO DE PLACA DE OBRA COM CHAPA GALVANIZADA E ESTRUTURA DE MADEIRA. AF_03/2022_PS (PLACA IMA) | E7: m² | F7: =Memória!G18 -> 3 | G7: 312.7 | H7: =TRUNC(G7 * (1 + 21.35 / 100), 2) -> 379.46 | I7: =TRUNC(F7 * H7, 2) -> 1138.38 | J7: Obras complementares | L7: Pavimentação | M7: =I16/I33 -> 0.6282761052 | N7: 0.62827 | O7: =TRUNC(N7,5) -> 0.62827
A8: 1.3 | B8: GRD-2023-12-SP1 | C8: Próprio | D8: ADMINISTRAÇÃO LOCAL | E8: UND | F8: =Memória!J23 -> 1 | G8: 64096.8 | H8: =TRUNC(G8 * (1 + 21.35 / 100), 2) -> 77781.46 | I8: =TRUNC(F8 * H8, 2) -> 77781.46 | J8: Administração local | L8: Drenagem | M8: =I22/I33 -> 0.2284875653 | N8: 0.22848 | O8: 0.22848
A9: 1.4 | B9: GRD-2023-12-SP2 | C9: Próprio | D9: MOBILIZAÇÃO E DESMOBILIZAÇÃO - | E9: UND | F9: =Memória!J33 -> 2 | G9: 2410.86 | H9: =TRUNC(G9 * (1 + 21.35 / 100), 2) -> 2925.57 | I9: =TRUNC(F9 * H9, 2) -> 5851.14 | J9: Mobilização desmobilização | L9: Consultoria | M9: =I10/I33 -> 0.007711403629 | N9: 0.00772 | O9: 0.00772
A10: 1.5 | B10: GRD-2023-12-SP3 | C10: Próprio | D10: PROJETO EXECUTIVO - | E10: UND | F10: =1 -> 1 | G10: 5900 | H10: =TRUNC(G10 * (1 + 21.35 / 100), 2) -> 7159.65 | I10: =TRUNC(F10 * H10, 2) -> 7159.65 | J10: Consultoria | L10: Administração local | M10: =I8/I33 -> 0.08377563608 | N10: 0.08378 | O10: 0.08378
A11: 2 | D11: TERRAPLENAGEM | I11: =SUM(I12:I15) -> 27412.34 | L11: Obras complementares | M11: =(I29+I6+I7+I26)/I33 -> 0.01592238201 | N11: 0.01593 | O11: 0.01593
A12: 2.1 | B12: 78472 | C12: SINAPI | D12: SERVICOS TOPOGRAFICOS PARA PAVIMENTACAO, INCLUSIVE NOTA DE SERVICOS, ACOMPANHAMENTO E GREIDE | E12: m² | F12: =Memória!G48 -> 4209.99 | G12: 0.4 | H12: =TRUNC(G12 * (1 + 21.35 / 100), 2) -> 0.48 | I12: =TRUNC(F12 * H12, 2) -> 2020.79 | J12: Terraplanagem | L12: Mobilização desmobilização | M12: =I9/I33 -> 0.006302054182 | N12: 0.0063 | O12: 0.0063
A13: 2.2 | B13: 100575 | C13: SINAPI | D13: REGULARIZAÇÃO DE SUPERFÍCIES COM MOTONIVELADORA. AF_11/2019 | E13: m² | F13: =Memória!G61 -> 4209.99 | G13: 0.13 | H13: =TRUNC(G13 * (1 + 21.35 / 100), 2) -> 0.15 | I13: =TRUNC(F13 * H13, 2) -> 631.49 | M13: =SUM(M6:M12) -> 1 | N13: =SUM(N6:N12) -> 1 | O13: =SUM(O6:O12) -> 1
A14: 2.3 | B14: 100974 | C14: SINAPI | D14: CARGA, MANOBRA E DESCARGA DE SOLOS E MATERIAIS GRANULARES EM CAMINHÃO BASCULANTE 10 M³ - CARGA COM PÁ CARREGADEIRA (CAÇAMBA DE 1,7 A 2,8 M³ / 128 HP) E DESCARGA LIVRE (UNIDADE: M3). AF_07/2020 | E14: m³ | F14: =Memória!H76 -> 1000.8125 | G14: 8.28 | H14: =TRUNC(G14 * (1 + 21.35 / 100), 2) -> 10.04 | I14: 10048.13
A15: 2.4 | B15: 95875 | C15: SINAPI | D15: TRANSPORTE COM CAMINHÃO BASCULANTE DE 10 M³, EM VIA URBANA PAVIMENTADA, DMT ATÉ 30 KM (UNIDADE: M3XKM). AF_07/2020 | E15: M3XKM | F15: =Memória!H89 -> 5004.0625 | G15: 2.43 | H15: =TRUNC(G15 * (1 + 21.35 / 100), 2) -> 2.94 | I15: 14711.93
A16: 3 | D16: PAVIMENTAÇÃO | I16: =SUM(I17:I21) -> 583322.73
A17: 3.1 | B17: 101169 | C17: SINAPI | D17: EXECUÇÃO DE PAVIMENTO EM PARALELEPÍPEDOS, REJUNTAMENTO COM ARGAMASSA TRAÇO 1:3 (CIMENTO E AREIA). AF_05/2020 | E17: m² | F17: =Memória!G98 -> 4209.99 | G17: 73.75 | H17: =TRUNC(G17 * (1 + 21.35 / 100), 2) -> 89.49 | I17: =TRUNC(F17 * H17, 2) -> 376752 | J17: Pavimentação
A18: 3.2 | B18: 95875 | C18: SINAPI | D18: TRANSPORTE COM CAMINHÃO BASCULANTE DE 10 M³, EM VIA URBANA PAVIMENTADA, DMT ATÉ 30 KM (UNIDADE: M3XKM). AF_07/2020 (TRANSPORTE DE PEDRA) | E18: M3XKM | F18: =Memória!H104 -> 21218.35 | G18: 2.43 | H18: =TRUNC(G18 * (1 + 21.35 / 100), 2) -> 2.94 | I18: =TRUNC(F18 * H18, 2) -> 62381.94
A19: 3.3 | B19: 93590 | C19: SINAPI | D19: TRANSPORTE COM CAMINHÃO BASCULANTE DE 10 M³, EM VIA URBANA PAVIMENTADA, ADICIONAL PARA DMT EXCEDENTE A 30 KM (UNIDADE: M3XKM). AF_07/2020 (TRANSPORTE DE PEDRA) | E19: M3XKM | F19: =Memória!H110 -> 63655.05 | G19: 0.96 | H19: =TRUNC(G19 * (1 + 21.35 / 100), 2) -> 1.16 | I19: =TRUNC(F19 * H19, 2) -> 73839.85
A20: 3.4 | B20: 95875 | C20: SINAPI | D20: TRANSPORTE COM CAMINHÃO BASCULANTE DE 10 M³, EM VIA URBANA PAVIMENTADA, DMT ATÉ 30 KM (UNIDADE: M3XKM). AF_07/2020 (TRANSPORTE DE AREIA) | E20: M3XKM | F20: =Memória!H116 -> 18944.96 | G20: 2.43 | H20: =TRUNC(G20 * (1 + 21.35 / 100), 2) -> 2.94 | I20: =TRUNC(F20 * H20, 2) -> 55698.18
A21: 3.5 | B21: 93590 | C21: SINAPI | D21: TRANSPORTE COM CAMINHÃO BASCULANTE DE 10 M³, EM VIA URBANA PAVIMENTADA, ADICIONAL PARA DMT EXCEDENTE A 30 KM (UNIDADE: M3XKM). AF_07/2020 (TRANSPORTE DE AREIA) | E21: M3XKM | F21: =Memória!H122 -> 12629.97 | G21: 0.96 | H21: =TRUNC(G21 * (1 + 21.35 / 100), 2) -> 1.16 | I21: =TRUNC(F21 * H21, 2) -> 14650.76
A22: 4 | D22: DRENAGEM | I22: =SUM(I23:I25) -> 212139.2
A23: 4.1 | B23: 94273 | C23: SINAPI | D23: ASSENTAMENTO DE GUIA (MEIO-FIO) EM TRECHO RETO, CONFECCIONADA EM CONCRETO PRÉ-FABRICADO, DIMENSÕES 100X15X13X30 CM (COMPRIMENTO X BASE INFERIOR X BASE SUPERIOR X ALTURA), PARA VIAS URBANAS (USO VIÁRIO). AF_06/2016 | E23: M | F23: =Memória!C137 -> 1880 | G23: 56.59 | H23: =TRUNC(G23 * (1 + 21.35 / 100), 2) -> 68.67 | I23: =TRUNC(F23 * H23, 2) -> 129099.6 | J23: Drenagem
A24: 4.2 | B24: 83718 | C24: SINAPI | D24: ESCORAMENTO DE MEIO FIO COM MATERIAL LOCAL COMPACTADO MANUALMENTE, EM FAIXA DE 0,50M | E24: M | F24: =Memória!C149 -> 1880 | G24: 4.66 | H24: =TRUNC(G24 * (1 + 21.35 / 100), 2) -> 5.65 | I24: =TRUNC(F24 * H24, 2) -> 10622
A25: 4.3 | B25: 94287 | C25: SINAPI | D25: EXECUÇÃO DE SARJETA DE CONCRETO USINADO, MOLDADA IN LOCO EM TRECHO RETO, 30 CM BASE X 10 CM ALTURA. AF_06/2016 | E25: M | F25: =Memória!C161 -> 1880 | G25: 31.75 | H25: =TRUNC(G25 * (1 + 21.35 / 100), 2) -> 38.52 | I25: =TRUNC(F25 * H25, 2) -> 72417.6
A26: 5 | D26: SINALIZAÇÃO | I26: =SUM(I27:I28) -> 497.9
A27: 5.1 | B27: 103694 | C27: SINAPI | D27: FORNECIMENTO E INSTALAÇÃO DE SUPORTE DE MADEIRA PARA PLACAS DE SINALIZAÇÃO, EM SOLO, COM H= DE 2,5 M E SEÇÃO DE 7,5 X 7,5 CM. AF_03/2022 | E27: UN | F27: =Memória!J173 -> 2 | G27: 108.42 | H27: =TRUNC(G27 * (1 + 21.35 / 100), 2) -> 131.56 | I27: =TRUNC(F27 * H27, 2) -> 263.12 | J27: Obras complementares
A28: 5.2 | B28: 10712 | C28: ORSE | D28: Confecção de placa de sinalização totalmente refletiva | E28: m² | F28: =Memória!J185 -> 2 | G28: 96.74 | H28: =TRUNC(G28 * (1 + 21.35 / 100), 2) -> 117.39 | I28: =TRUNC(F28 * H28, 2) -> 234.78 | J28: Obras complementares
A29: 6 | D29: SERVIÇOS COMPLEMENTARES | I29: =SUM(I30:I32) -> 8229.05
A30: 6.1 | B30: C-22-0117 | C30: Próprio | D30: LIMPEZA DE RUAS (VARRIÇÃO E REMOÇÃO DE ENTULHOS) - REF. ORSE 6191 | E30: m² | F30: =Memória!G199 -> 4209.99 | G30: 0.66 | H30: =TRUNC(G30 * (1 + 21.35 / 100), 2) -> 0.8 | I30: =TRUNC(F30 * H30, 2) -> 3367.99 | J30: Obras complementares
A31: 6.2 | B31: 102498 | C31: SINAPI | D31: PINTURA DE MEIO-FIO COM TINTA BRANCA A BASE DE CAL (CAIAÇÃO). AF_05/2021 | E31: M | F31: =Memória!C211 -> 1880 | G31: 1.5 | H31: =TRUNC(G31 * (1 + 21.35 / 100), 2) -> 1.82 | I31: =TRUNC(F31 * H31, 2) -> 3421.6 | J31: Obras complementares
A32: 6.3 | B32: C-23-0016 | C32: Próprio | D32: TOTEM DE INAUGURAÇÃO EM CONCRETO ARMADO FCL=20MPA COM TEXTO EM BAIXO RELEVO - MODELO CODEVASF | E32: UND | F32: =Memória!J216 -> 2 | G32: 593.11 | H32: =TRUNC(G32 * (1 + 21.35 / 100), 2) -> 719.73 | I32: =TRUNC(F32 * H32, 2) -> 1439.46 | J32: Obras complementares
I33: =I5+I11+I16+I22+I26+I29 -> 928449.65
A38: _______________________________________________________________ GRD / UEP 2 Setor de Engenharia

Sheet Orçamento Sintético CD
D1: Obra | E1: Bancos | G1: B.D.I. | I1: Encargos Sociais
D2: Execução de serviços de pavimentação em paralelepípedo em ruas do município de Penedo/AL (DESONERADA) | E2: SINAPI - 04/2024 - Alagoas SICRO3 - 01/2024 - Alagoas ORSE - 03/2024 - Sergipe | G2: 27,46% | I2: Desonerado: Horista: 85,20% Mensalista: 46,48%
A3: Orçamento Sintético
A4: Item | B4: Código | C4: Banco | D4: Descrição | E4: Und | F4: Quant. | G4: Valor Unit | H4: Valor Unit com BDI | I4: Total
A5: 1 | D5: SERVIÇOS PRELIMINARES | I5: =SUM(I6:I10) -> 93538.99
A6: 1.1 | B6: 103689 | C6: SINAPI | D6: FORNECIMENTO E INSTALAÇÃO DE PLACA DE OBRA COM CHAPA GALVANIZADA E ESTRUTURA DE MADEIRA. AF_03/2022_PS | E6: m² | F6: =Memória!G13 -> 12.96 | G6: 308.96 | H6: =TRUNC(G6 * (1 + 27.46 / 100), 2) -> 393.8 | I6: =TRUNC(F6 * H6, 2) -> 5103.64 | J6: Obras complementares | L6: Terraplanagem | M6: =I11/I33 -> 0.02983229525 | N6: 0.0303 | O6: =TRUNC(N6,5) -> 0.0303
A7: 1.2 | B7: 103689 | C7: SINAPI | D7: FORNECIMENTO E INSTALAÇÃO DE PLACA DE OBRA COM CHAPA GALVANIZADA E ESTRUTURA DE MADEIRA. AF_03/2022_PS (PLACA IMA) | E7: m² | F7: =Memória!G18 -> 3 | G7: 308.96 | H7: =TRUNC(G7 * (1 + 27.46 / 100), 2) -> 393.8 | I7: =TRUNC(F7 * H7, 2) -> 1181.4 | J7: Obras complementares | L7: Pavimentação | M7: =I16/I33 -> 0.6331256568 | N7: 0.6432 | O7: =TRUNC(N7,5) -> 0.6432
A8: 1.3 | B8: GRD-2023-12-SP1 | C8: Próprio | D8: ADMINISTRAÇÃO LOCAL | E8: UND | F8: =Memória!J23 -> 1 | G8: 57790.8 | H8: =TRUNC(G8 * (1 + 27.46 / 100), 2) -> 73660.15 | I8: =TRUNC(F8 * H8, 2) -> 73660.15 | J8: Administração local | L8: Drenagem | M8: =I22/I33 -> 0.2291611491 | N8: 0.23282 | O8: 0.23282
A9: 1.4 | B9: GRD-2023-12-SP2 | C9: Próprio | D9: MOBILIZAÇÃO E DESMOBILIZAÇÃO | E9: UND | F9: =Memória!J33 -> 2 | G9: 2382.58 | H9: =TRUNC(G9 * (1 + 27.46 / 100), 2) -> 3036.83 | I9: =TRUNC(F9 * H9, 2) -> 6073.66 | J9: Mobilização desmobilização | L9: Consultoria | M9: =I10/I33 -> 0.007955751274 | N9: 0.00808 | O9: 0.00808
A10: 1.5 | B10: GRD-2023-12-SP3 | C10: Próprio | D10: PROJETO EXECUTIVO | E10: UND | F10: =1 -> 1 | G10: 5900 | H10: =TRUNC(G10 * (1 + 27.46 / 100), 2) -> 7520.14 | I10: =TRUNC(F10 * H10, 2) -> 7520.14 | J10: Consultoria | L10: Administração local | M10: =I8/I33 -> 0.07792698436 | N10: 0.06325 | O10: 0.06325
A11: 2 | D11: TERRAPLENAGEM | I11: =SUM(I12:I15) -> 28198.85 | L11: Obras complementares | M11: =(I29+I6+I7+I26)/I33 -> 0.0155726806 | N11: 0.01583 | O11: 0.01583
A12: 2.1 | B12: 78472 | C12: SINAPI | D12: SERVICOS TOPOGRAFICOS PARA PAVIMENTACAO, INCLUSIVE NOTA DE SERVICOS, ACOMPANHAMENTO E GREIDE | E12: m² | F12: =Memória!G48 -> 4209.99 | G12: 0.37 | H12: =TRUNC(G12 * (1 + 27.46 / 100), 2) -> 0.47 | I12: =TRUNC(F12 * H12, 2) -> 1978.69 | J12: Terraplanagem | L12: Mobilização desmobilização | M12: =I9/I33 -> 0.006425482542 | N12: 0.00652 | O12: 0.00652
A13: 2.2 | B13: 100575 | C13: SINAPI | D13: REGULARIZAÇÃO DE SUPERFÍCIES COM MOTONIVELADORA. AF_11/2019 | E13: m² | F13: =Memória!G61 -> 4209.99 | G13: 0.11 | H13: =TRUNC(G13 * (1 + 27.46 / 100), 2) -> 0.14 | I13: =TRUNC(F13 * H13, 2) -> 589.39 | M13: =SUM(M6:M12) -> 1 | N13: =SUM(N6:N12) -> 1 | O13: =SUM(O6:O12) -> 1
A14: 2.3 | B14: 100974 | C14: SINAPI | D14: CARGA, MANOBRA E DESCARGA DE SOLOS E MATERIAIS GRANULARES EM CAMINHÃO BASCULANTE 10 M³ - CARGA COM PÁ CARREGADEIRA (CAÇAMBA DE 1,7 A 2,8 M³ / 128 HP) E DESCARGA LIVRE (UNIDADE: M3). AF_07/2020 | E14: m³ | F14: =Memória!H76 -> 1000.8125 | G14: 8.13 | H14: 10.36 | I14: 10368.39
A15: 2.4 | B15: 95875 | C15: SINAPI | D15: TRANSPORTE COM CAMINHÃO BASCULANTE DE 10 M³, EM VIA URBANA PAVIMENTADA, DMT ATÉ 30 KM (UNIDADE: M3XKM). AF_07/2020 | E15: M3XKM | F15: =Memória!H89 -> 5004.0625 | G15: 2.4 | H15: =TRUNC(G15 * (1 + 27.46 / 100), 2) -> 3.05 | I15: 15262.38
A16: 3 | D16: PAVIMENTAÇÃO | I16: =SUM(I17:I21) -> 598459.33
A17: 3.1 | B17: 101169 | C17: SINAPI | D17: EXECUÇÃO DE PAVIMENTO EM PARALELEPÍPEDOS, REJUNTAMENTO COM ARGAMASSA TRAÇO 1:3 (CIMENTO E AREIA). AF_05/2020 | E17: m² | F17: =Memória!G98 -> 4209.99 | G17: 71.5 | H17: =TRUNC(G17 * (1 + 27.46 / 100), 2) -> 91.13 | I17: =TRUNC(F17 * H17, 2) -> 383656.38 | J17: Pavimentação
A18: 3.2 | B18: 95875 | C18: SINAPI | D18: TRANSPORTE COM CAMINHÃO BASCULANTE DE 10 M³, EM VIA URBANA PAVIMENTADA, DMT ATÉ 30 KM (UNIDADE: M3XKM). AF_07/2020 (TRANSPORTE DE PEDRA) | E18: M3XKM | F18: =Memória!H104 -> 21218.35 | G18: 2.4 | H18: =TRUNC(G18 * (1 + 27.46 / 100), 2) -> 3.05 | I18: =TRUNC(F18 * H18, 2) -> 64715.96
A19: 3.3 | B19: 93590 | C19: SINAPI | D19: TRANSPORTE COM CAMINHÃO BASCULANTE DE 10 M³, EM VIA URBANA PAVIMENTADA, ADICIONAL PARA DMT EXCEDENTE A 30 KM (UNIDADE: M3XKM). AF_07/2020 (TRANSPORTE DE PEDRA) | E19: M3XKM | F19: =Memória!H110 -> 63655.05 | G19: 0.95 | H19: =TRUNC(G19 * (1 + 27.46 / 100), 2) -> 1.21 | I19: =TRUNC(F19 * H19, 2) -> 77022.61
A20: 3.4 | B20: 95875 | C20: SINAPI | D20: TRANSPORTE COM CAMINHÃO BASCULANTE DE 10 M³, EM VIA URBANA PAVIMENTADA, DMT ATÉ 30 KM (UNIDADE: M3XKM). AF_07/2020 (TRANSPORTE DE AREIA) | E20: M3XKM | F20: =Memória!H116 -> 18944.96 | G20: 2.4 | H20: =TRUNC(G20 * (1 + 27.46 / 100), 2) -> 3.05 | I20: =TRUNC(F20 * H20, 2) -> 57782.12
A21: 3.5 | B21: 93590 | C21: SINAPI | D21: TRANSPORTE COM CAMINHÃO BASCULANTE DE 10 M³, EM VIA URBANA PAVIMENTADA, ADICIONAL PARA DMT EXCEDENTE A 30 KM (UNIDADE: M3XKM). AF_07/2020 (TRANSPORTE DE AREIA) | E21: M3XKM | F21: =Memória!H122 -> 12629.97 | G21: 0.95 | H21: =TRUNC(G21 * (1 + 27.46 / 100), 2) -> 1.21 | I21: =TRUNC(F21 * H21, 2) -> 15282.26
A22: 4 | D22: DRENAGEM | I22: =SUM(I23:I25) -> 216613.6
A23: 4.1 | B23: 94273 | C23: SINAPI | D23: ASSENTAMENTO DE GUIA (MEIO-FIO) EM TRECHO RETO, CONFECCIONADA EM CONCRETO PRÉ-FABRICADO, DIMENSÕES 100X15X13X30 CM (COMPRIMENTO X BASE INFERIOR X BASE SUPERIOR X ALTURA), PARA VIAS URBANAS (USO VIÁRIO). AF_06/2016 | E23: M | F23: =Memória!C137 -> 1880 | G23: 55.51 | H23: =TRUNC(G23 * (1 + 27.46 / 100), 2) -> 70.75 | I23: =TRUNC(F23 * H23, 2) -> 133010 | J23: Drenagem
A24: 4.2 | B24: 83718 | C24: SINAPI | D24: ESCORAMENTO DE MEIO FIO COM MATERIAL LOCAL COMPACTADO MANUALMENTE, EM FAIXA DE 0,50M | E24: M | F24: =Memória!C149 -> 1880 | G24: 4.21 | H24: =TRUNC(G24 * (1 + 27.46 / 100), 2) -> 5.36 | I24: =TRUNC(F24 * H24, 2) -> 10076.8
A25: 4.3 | B25: 94287 | C25: SINAPI | D25: EXECUÇÃO DE SARJETA DE CONCRETO USINADO, MOLDADA IN LOCO EM TRECHO RETO, 30 CM BASE X 10 CM ALTURA. AF_06/2016 | E25: M | F25: =Memória!C161 -> 1880 | G25: 30.69 | H25: =TRUNC(G25 * (1 + 27.46 / 100), 2) -> 39.11 | I25: =TRUNC(F25 * H25, 2) -> 73526.8
A26: 5 | D26: SINALIZAÇÃO | I26: =SUM(I27:I28) -> 513.34
A27: 5.1 | B27: 103694 | C27: SINAPI | D27: FORNECIMENTO E INSTALAÇÃO DE SUPORTE DE MADEIRA PARA PLACAS DE SINALIZAÇÃO, EM SOLO, COM H= DE 2,5 M E SEÇÃO DE 7,5 X 7,5 CM. AF_03/2022 | E27: UN | F27: =Memória!J173 -> 2 | G27: 104.64 | H27: =TRUNC(G27 * (1 + 27.46 / 100), 2) -> 133.37 | I27: =TRUNC(F27 * H27, 2) -> 266.74 | J27: Obras complementares
A28: 5.2 | B28: 10712 | C28: ORSE | D28: Confecção de placa de sinalização totalmente refletiva | E28: m² | F28: =Memória!J185 -> 2 | G28: 96.74 | H28: =TRUNC(G28 * (1 + 27.46 / 100), 2) -> 123.3 | I28: =TRUNC(F28 * H28, 2) -> 246.6 | J28: Obras complementares
A29: 6 | D29: SERVIÇOS COMPLEMENTARES | I29: =SUM(I30:I32) -> 7921.63
A30: 6.1 | B30: C-22-0117 | C30: Próprio | D30: LIMPEZA DE RUAS (VARRIÇÃO E REMOÇÃO DE ENTULHOS) - REF. ORSE 6191 | E30: m² | F30: =Memória!G199 -> 4209.99 | G30: 0.6 | H30: =TRUNC(G30 * (1 + 27.46 / 100), 2) -> 0.76 | I30: =TRUNC(F30 * H30, 2) -> 3199.59 | J30: Obras complementares
A31: 6.2 | B31: 102498 | C31: SINAPI | D31: PINTURA DE MEIO-FIO COM TINTA BRANCA A BASE DE CAL (CAIAÇÃO). AF_05/2021 | E31: M | F31: =Memória!C211 -> 1880 | G31: 1.37 | H31: =TRUNC(G31 * (1 + 27.46 / 100), 2) -> 1.74 | I31: =TRUNC(F31 * H31, 2) -> 3271.2 | J31: Obras complementares
A32: 6.3 | B32: C-23-0016 | C32: Próprio | D32: TOTEM DE INAUGURAÇÃO EM CONCRETO ARMADO FCL=20MPA COM TEXTO EM BAIXO RELEVO - MODELO CODEVASF | E32: UND | F32: =Memória!J216 -> 2 | G32: 569.14 | H32: =TRUNC(G32 * (1 + 27.46 / 100), 2) -> 725.42 | I32: =TRUNC(F32 * H32, 2) -> 1450.84 | J32: Obras complementares
E33: Total Geral | I33: =I5+I11+I16+I22+I26+I29 -> 945245.74
A38: _______________________________________________________________ GRD / UEP Setor de Engenharia

Sheet Cronograma
B1: Obra | C1: Bancos | D1: B.D.I. | F1: Encargos Sociais
B2: SEM DESONERAÇÃO -Execução de serviços de pavimentação em paralelepípedo em ruas do município de Penedo/AL | C2: SINAPI - 04/2024 - Alagoas SICRO3 - 01/2024 - Alagoas ORSE - 03/2024 - Sergipe | D2: 21,35% | F2: Não Desonerado: Horista: 115,22% Mensalista: 70,31%
A3: Cronograma Físico e Financeiro
A4: Item | B4: Descrição | C4: Total Por Etapa | D4: 30 DIAS | E4: 60 DIAS | F4: 90 DIAS | G4: 120 DIAS | H4: 150 DIAS
A5: 1 | B5: SERVIÇOS PRELIMINARES | C5: 100,00% 96.848,43 | D5: 18,27% 17.697,03 | E5: 20,08% 19.445,37 | F5: 24,09% 23.334,44 | G5: 24,09% 23.334,44 | H5: 13,46% 13.037,16
A6: 1.1 | B6: FORNECIMENTO E INSTALAÇÃO DE PLACA DE OBRA COM CHAPA GALVANIZADA E ESTRUTURA DE MADEIRA. AF_03/2022_PS | C6: 100,00% 4.917,80 | D6: 100,00% 4.917,80
A7: 1.2 | B7: FORNECIMENTO E INSTALAÇÃO DE PLACA DE OBRA COM CHAPA GALVANIZADA E ESTRUTURA DE MADEIRA. AF_03/2022_PS (PLACA IMA) | C7: 100,00% 1.138,38 | D7: 100,00% 1.138,38
A8: 1.3 | B8: ADMINISTRAÇÃO LOCAL | C8: 100,00% 77.781,46 | D8: 2,00% 1.555,63 | E8: 25,00% 19.445,37 | F8: 30,00% 23.334,44 | G8: 30,00% 23.334,44 | H8: 13,00% 10.111,59
A9: 1.4 | B9: MOBILIZAÇÃO E DESMOBILIZAÇÃO | C9: 100,00% 5.851,14 | D9: 50,00% 2.925,57 | H9: 50,00% 2.925,57
A10: 1.5 | B10: PROJETO EXECUTIVO | C10: 100,00% 7.159,65 | D10: 100,00% 7.159,65
A11: 2 | B11: TERRAPLENAGEM | C11: 61,04% 27.412,34 | D11: 24,42% 6.693,09 | E11: 36,62% 10.039,63
A12: 2.1 | B12: SERVICOS TOPOGRAFICOS PARA PAVIMENTACAO, INCLUSIVE NOTA DE SERVICOS, ACOMPANHAMENTO E GREIDE | C12: 100,00% 2.020,79 | D12: 40,00% 808,32 | E12: 60,00% 1.212,47
A13: 2.4 | B13: TRANSPORTE COM CAMINHÃO BASCULANTE DE 10 M³, EM VIA URBANA PAVIMENTADA, DMT ATÉ 30 KM (UNIDADE: M3XKM). AF_07/2020 | C13: 100,00% 14.711,93 | D13: 40,00% 5.884,77 | E13: 60,00% 8.827,16
A14: 3 | B14: PAVIMENTAÇÃO | C14: 100,00% 583.322,73 | E14: 10,00% 58.332,27 | F14: 40,00% 233.329,09 | G14: 40,00% 233.329,09 | H14: 10,00% 58.332,27
A15: 3.1 | B15: EXECUÇÃO DE PAVIMENTO EM PARALELEPÍPEDOS, REJUNTAMENTO COM ARGAMASSA TRAÇO 1:3 (CIMENTO E AREIA). AF_05/2020 | C15: 100,00% 376.752,00 | E15: 10,00% 37.675,20 | F15: 40,00% 150.700,80 | G15: 40,00% 150.700,80 | H15: 10,00% 37.675,20
A16: 3.2 | B16: TRANSPORTE COM CAMINHÃO BASCULANTE DE 10 M³, EM VIA URBANA PAVIMENTADA, DMT ATÉ 30 KM (UNIDADE: M3XKM). AF_07/2020 (TRANSPORTE DE PEDRA) | C16: 100,00% 62.381,94 | E16: 10,00% 6.238,19 | F16: 40,00% 24.952,78 | G16: 40,00% 24.952,78 | H16: 10,00% 6.238,19
A17: 3.3 | B17: TRANSPORTE COM CAMINHÃO BASCULANTE DE 10 M³, EM VIA URBANA PAVIMENTADA, ADICIONAL PARA DMT EXCEDENTE A 30 KM (UNIDADE: M3XKM). AF_07/2020 (TRANSPORTE DE PEDRA) | C17: 100,00% 73.839,85 | E17: 10,00% 7.383,99 | F17: 40,00% 29.535,94 | G17: 40,00% 29.535,94 | H17: 10,00% 7.383,99
A18: 3.4 | B18: TRANSPORTE COM CAMINHÃO BASCULANTE DE 10 M³, EM VIA URBANA PAVIMENTADA, DMT ATÉ 30 KM (UNIDADE: M3XKM). AF_07/2020 (TRANSPORTE DE AREIA) | C18: 100,00% 55.698,18 | E18: 10,00% 5.569,82 | F18: 40,00% 22.279,27 | G18: 40,00% 22.279,27 | H18: 10,00% 5.569,82
A19: 3.5 | B19: TRANSPORTE COM CAMINHÃO BASCULANTE DE 10 M³, EM VIA URBANA PAVIMENTADA, ADICIONAL PARA DMT EXCEDENTE A 30 KM (UNIDADE: M3XKM). AF_07/2020 (TRANSPORTE DE AREIA) | C19: 100,00% 14.650,76 | E19: 10,00% 1.465,08 | F19: 40,00% 5.860,30 | G19: 40,00% 5.860,30 | H19: 10,00% 1.465,08
A20: 4 | B20: DRENAGEM | C20: 100,00% 212.139,20 | E20: 30,00% 63.641,76 | F20: 30,00% 63.641,76 | G20: 40,00% 84.855,68
A21: 4.1 | B21: ASSENTAMENTO DE GUIA (MEIO-FIO) EM TRECHO RETO, CONFECCIONADA EM CONCRETO PRÉ-FABRICADO, DIMENSÕES 100X15X13X30 CM (COMPRIMENTO X BASE INFERIOR X BASE SUPERIOR X ALTURA), PARA VIAS URBANAS (USO VIÁRIO). AF_06/2016 | C21: 100,00% 129.099,60 | E21: 30,00% 38.729,88 | F21: 30,00% 38.729,88 | G21: 40,00% 51.639,84
A22: 4.2 | B22: ESCORAMENTO DE MEIO FIO COM MATERIAL LOCAL COMPACTADO MANUALMENTE, EM FAIXA DE 0,50M | C22: 100,00% 10.622,00 | E22: 30,00% 3.186,60 | F22: 30,00% 3.186,60 | G22: 40,00% 4.248,80
A23: 4.3 | B23: EXECUÇÃO DE SARJETA DE CONCRETO USINADO, MOLDADA IN LOCO EM TRECHO RETO, 30 CM BASE X 10 CM ALTURA. AF_06/2016 | C23: 100,00% 72.417,60 | E23: 30,00% 21.725,28 | F23: 30,00% 21.725,28 | G23: 40,00% 28.967,04
A24: 5 | B24: SINALIZAÇÃO | C24: 100,00% 497,90 | E24: 50,00% 248,95 | F24: 50,00% 248,95
A25: 5.1 | B25: FORNECIMENTO E INSTALAÇÃO DE SUPORTE DE MADEIRA PARA PLACAS DE SINALIZAÇÃO, EM SOLO, COM H= DE 2,5 M E SEÇÃO DE 7,5 X 7,5 CM. AF_03/2022 | C25: 100,00% 263,12 | E25: 50,00% 131,56 | F25: 50,00% 131,56
A26: 5.2 | B26: Confecção de placa de sinalização totalmente refletiva | C26: 100,00% 234,78 | E26: 50,00% 117,39 | F26: 50,00% 117,39
A27: 6 | B27: SERVIÇOS COMPLEMENTARES | C27: 100,00% 8.229,05 | H27: 100,00% 8.229,05
A28: 6.1 | B28: LIMPEZA DE RUAS (VARRIÇÃO E REMOÇÃO DE ENTULHOS) - REF. ORSE 6191 | C28: 100,00% 3.367,99 | H28: 100,00% 3.367,99
A29: 6.2 | B29: PINTURA DE MEIO-FIO COM TINTA BRANCA A BASE DE CAL (CAIAÇÃO). AF_05/2021 | C29: 100,00% 3.421,60 | H29: 100,00% 3.421,60
A30: 6.3 | B30: TOTEM DE INAUGURAÇÃO EM CONCRETO ARMADO FCL=20MPA COM TEXTO EM BAIXO RELEVO - MODELO CODEVASF | C30: 100,00% 1.439,46 | H30: 100,00% 1.439,46
A31: Porcentagem | D31: 2,63% | E31: 16,34% | F31: 34,53% | G31: 36,78% | H31: 8,57%
A32: Custo | D32: 24.390,12 | E32: 151.707,98 | F32: 320.554,24 | G32: 341.519,21 | H32: 79.598,48
A33: Porcentagem Acumulado | D33: 2,63% | E33: 18,97% | F33: 53,49% | G33: 90,28% | H33: 98,85%
A34: Custo Acumulado | D34: 24.390,11 | E34: 176.098,09 | F34: 496.652,33 | G34: 838.171,54 | H34: 917.770,03
A37: _______________________________________________________________ GRD / UEP 2 Setor de Engenharia

Sheet Memória
A4: Obra: | B4: Execução de serviços de pavimentação em paralelepíedo em ruas no município de Penedo/AL
A5: Local: | B5: Penedo/AL
E6: MEMÓRIA DE CÁLCULO
A7: Item | B7: Descrição | C7: Comp. (m) | D7: Largura (m) | E7: Espessura (m) | F7: Altura (m) | G7: Área (m2) | H7: Volume (m3) | I7: Distância (Km) | J7: Quantidade | K7: Descontos | L7: Adicionais | M7: Unidade | N7: Observações - critérios - justificativas. | O7: t
A8: 1 | B8: SERVIÇOS PRELIMINARES | O8: 1
A10: 1.1 | B10: FORNECIMENTO E INSTALAÇÃO DE PLACA DE OBRA COM CHAPA GALVANIZADA E ESTRUTURA DE MADEIRA. AF_03/2022_PS | O10: 2
B12: Modelo padrão Codevasf | C12: 3.6 | F12: 1.8 | G12: =F12*C12*J12 -> 12.96 | J12: 2 | N12: Considerado duas placas pois os locais de construção são relativamente distantes um do outro para dar maior publicidade e identificação à obra se faz necessário pelo menos duas placas.
B13: TOTAL 1.1 | G13: =SUM(G12) -> 12.96 | M13: =IF(C13>0,"M",IF(G13>0,"M²",IF(H13>0,"M³",IF(I13>0,"KG",IF(J13>0,"UND",""))))) -> M² | O13: T
A15: 1.2 | B15: FORNECIMENTO E INSTALAÇÃO DE PLACA DE OBRA COM CHAPA GALVANIZADA E ESTRUTURA DE MADEIRA. AF_03/2022_PS (PLACA IMA) | O15: 2
C17: 1.5 | F17: 1 | G17: =F17*C17*J17 -> 3 | J17: 2
B18: TOTAL 1.2 | G18: =SUM(G17) -> 3 | J18: =SUM(J16:J17) -> 2 | M18: =IF(C18>0,"M",IF(G18>0,"M²",IF(H18>0,"M³",IF(I18>0,"KG",IF(J18>0,"UND",""))))) -> M² | O18: T
A20: 1.3 | B20: ADMINISTRAÇÃO LOCAL | O20: 2
B22: Valor global (pago proporcional à execução) | J22: 1
B23: TOTAL 1.3 | J23: =SUM(J21:J22) -> 1 | M23: =IF(C23>0,"M",IF(G23>0,"M²",IF(H23>0,"M³",IF(I23>0,"KG",IF(J23>0,"UND",""))))) -> UND | O23: T
A25: 1.4 | B25: DETALHAMENTO DE PROJETO EXECUTIVO | O25: 2
J27: 1
B28: TOTAL 1.4 | J28: =SUM(J26:J27) -> 1 | M28: =IF(C28>0,"M",IF(G28>0,"M²",IF(H28>0,"M³",IF(I28>0,"KG",IF(J28>0,"UND",""))))) -> UND | O28: T
A30: 1.5 | B30: MOBILIZAÇÃO E DESMOBILIZAÇÃO DE EQUIPAMENTOS | O30: 2
J32: 2
B33: TOTAL 1.5 | J33: =SUM(J31:J32) -> 2 | M33: =IF(C33>0,"M",IF(G33>0,"M²",IF(H33>0,"M³",IF(I33>0,"KG",IF(J33>0,"UND",""))))) -> UND | O33: T
A35: 2 | B35: TERRAPLENAGEM | O35: 1
A37: 2.1 | B37: SERVICOS TOPOGRAFICOS PARA PAVIMENTACAO, INCLUSIVE NOTA DE SERVICOS, ACOMPANHAMENTO E GREIDE | O37: 2
B39: Área projetada do pavimento | N39: As áreas foram obtidas pela consulta as peças do Volume II - Perças gráficas - Projetos de Pavimentação.
B41: Rua São João | G41: 2052.18
B46: Manibu | G46: 2157.81
B48: TOTAL 2.1 | G48: =SUM(G39:G47) -> 4209.99 | M48: =IF(C48>0,"M",IF(G48>0,"M²",IF(H48>0,"M³",IF(I48>0,"KG",IF(J48>0,"UND",""))))) -> M² | O48: T
A50: 2.2 | B50: REGULARIZAÇÃO DE SUPERFÍCIES COM MOTONIVELADORA. AF_11/2019 | O50: 2
N53: As áreas foram obtidas pela consulta as peças do Volume II - Perças gráficas - Projetos de Pavimentação.
B54: Rua São João | G54: =G41 -> 2052.18
B59: Manibu | G59: 2157.81
B61: TOTAL 2.2 | G61: =SUM(G52:G60) -> 4209.99 | M61: =IF(C61>0,"M",IF(G61>0,"M²",IF(H61>0,"M³",IF(I61>0,"KG",IF(J61>0,"UND",""))))) -> M² | O61: T
A64: 2.3 | B64: CARGA, MANOBRA E DESCARGA DE SOLOS E MATERIAIS GRANULARES EM CAMINHÃO BASCULANTE 10 M³ - CARGA COM PÁ CARREGADEIRA (CAÇAMBA DE 1,7 A 2,8 M³ / 128 HP) E DESCARGA LIVRE (UNIDADE: M3). AF_07/2020 | O64: 2
B67: Volume - Empolamento 25%
N68: Os Volumes foram obtidos pela consulta as peças do Volume II - Perças gráficas - Projetos de Pavimentação. (foi considerado um empolamento de 25%, conforme memorial descritivo do projeto na folha n.º 12).
B69: Rua São João | H69: 140.31
B74: Manibu | H74: 660.34
B76: TOTAL 2.4 | H76: =SUM(H65:H75)*1.25 -> 1000.8125 | M76: =IF(C76>0,"M",IF(G76>0,"M²",IF(H76>0,"M³",IF(I76>0,"KG",IF(J76>0,"UND",""))))) -> M³ | O76: T
A78: 2.4 | B78: TRANSPORTE COM CAMINHÃO BASCULANTE DE 10 M³, EM VIA URBANA PAVIMENTADA, DMT ATÉ 30 KM (UNIDADE: M3XKM). AF_07/2020 | O78: 2
B80: Volume - Empolamento 25% | N80: Os Volumes foram obtidos pela consulta as peças do Volume II - Perças gráficas - Projetos de Pavimentação. (foi considerado um empolamento de 25%, conforme memorial descritivo do projeto na folha n.º 12).
B82: Rua São João | H82: 140.31
B87: Manibu | H87: =H74 -> 660.34
I88: 5 | J88: Obs: distância média entre os trechos. | N88: from:-10.2936073461, -36.5287788739 (Bota Fora - Penedo)
B89: TOTAL 2.5 | H89: =SUM(H79:H88)*1.25*I88 -> 5004.0625 | M89: =IF(C89>0,"M",IF(G89>0,"M²",IF(H89>0,"M³",IF(I89>0,"KG",IF(J89>0,"UND",""))))) -> M³ | O89: T
A92: 3 | B92: PAVIMENTAÇÃO | O92: 1
A94: 3.1 | B94: EXECUÇÃO DE PAVIMENTO EM PARALELEPÍPEDOS, REJUNTAMENTO COM ARGAMASSA TRAÇO 1:3 (CIMENTO E AREIA). AF_05/2020 | O94: 2
B96: Área projetada do pavimento em paralelepípedo | C96: 1 | G96: =G48 -> 4209.99 | N96: Em conformidade com a área levantada pela topografia. Item 2.1.
B98: TOTAL 3.1 | G98: =SUM(G95:G96) -> 4209.99 | M98: =IF(C98>0,"M",IF(G98>0,"M²",IF(H98>0,"M³",IF(I98>0,"KG",IF(J98>0,"UND",""))))) -> M² | O98: T
A100: 3.2 | B100: TRANSPORTE COM CAMINHÃO BASCULANTE DE 10 M³, EM VIA URBANA PAVIMENTADA, DMT ATÉ 30 KM (UNIDADE: M3XKM). AF_07/2020 (TRANSPORTE DE PEDRA) | O100: 2
G102: fator de empolamento: | H102: 1.4
B103: Área do paralelo x Esp. x Empolamento (40%) x DMT | E103: 0.12 | G103: =G96 -> 4209.99 | H103: =ROUND(E103*H102*G103*I103,2) -> 21218.35 | I103: 30
B104: TOTAL 3.2 | H104: =SUM(H103) -> 21218.35 | M104: =IF(C104>0,"M",IF(G104>0,"M²",IF(H104>0,"M³XKM",IF(I104>0,"KG",IF(J104>0,"UND",""))))) -> M³XKM | O104: T
A106: 3.3 | B106: TRANSPORTE COM CAMINHÃO BASCULANTE DE 10 M³, EM VIA URBANA PAVIMENTADA, ADICIONAL PARA DMT EXCEDENTE A 30 KM (UNIDADE: M3XKM). AF_07/2020 (TRANSPORTE DE PEDRA) | O106: 2
G108: fator de empolamento: | H108: 1.4
B109: Área do paralelo x Esp. x Empolamento (40%) x DMT | E109: 0.12 | G109: =G96 -> 4209.99 | H109: =ROUND(E109*H108*G109*I109,2) -> 63655.05 | I109: 90
B110: TOTAL 3.3 | H110: =SUM(H109) -> 63655.05 | M110: =IF(C110>0,"M",IF(G110>0,"M²",IF(H110>0,"M³",IF(I110>0,"KG",IF(J110>0,"UND",""))))) -> M³ | O110: T
A112: 3.4 | B112: TRANSPORTE COM CAMINHÃO BASCULANTE DE 10 M³, EM VIA URBANA PAVIMENTADA, DMT ATÉ 30 KM (UNIDADE: M3XKM). AF_07/2020 (TRANSPORTE DE AREIA) | O112: 2
G114: fator de empolamento: | H114: 1.25
B115: Área do paralelo x Coef. X Empolamento (25%) x DMT (São Sebastião) | G115: =G96 -> 4209.99 | H115: =ROUND(G115*I115*J115*H114,2) -> 18944.96 | I115: 30 | J115: 0.12
B116: TOTAL 3.4 | H116: =SUM(H115) -> 18944.96 | M116: =IF(C116>0,"M",IF(G116>0,"M²",IF(H116>0,"M³",IF(I116>0,"KG",IF(J116>0,"UND",""))))) -> M³ | O116: T
A118: 3.5 | B118: TRANSPORTE COM CAMINHÃO BASCULANTE DE 10 M³, EM VIA URBANA PAVIMENTADA, ADICIONAL PARA DMT EXCEDENTE A 30 KM (UNIDADE: M3XKM). AF_07/2020 (TRANSPORTE DE AREIA) | O118: 2
G120: fator de empolamento: | H120: 1.25
B121: Área do paralelo x Coef. X Empolamento (25%) x DMT (São Sebastião) | G121: =G96 -> 4209.99 | H121: =ROUND(G121*I121*J121*H120,2) -> 12629.97 | I121: 20 | J121: 0.12
B122: TOTAL 3.5 | H122: =SUM(H121) -> 12629.97 | M122: =IF(C122>0,"M",IF(G122>0,"M²",IF(H122>0,"M³",IF(I122>0,"KG",IF(J122>0,"UND",""))))) -> M³ | O122: T
A125: 4 | B125: DRENAGEM | O125: 1
A127: 4.1 | B127: ASSENTAMENTO DE GUIA (MEIO-FIO) EM TRECHO RETO, CONFECCIONADA EM CONCRETO PRÉ-FABRICADO, DIMENSÕES 100X15X13X30 CM (COMPRIMENTO X BASE INFERIOR X BASE SUPERIOR X ALTURA), PARA VIAS URBANAS (USO VIÁRIO). AF_06/2016 | O127: 2
N129: Os comprimentos de meio fio foram obtidos pela consulta das peças do Volume II - Perças gráficas - Projetos de Pavimentação. Foi considerado ao final o dobro das medidas por ser considerado os dois lados da via (bordo esquerdo e direito).
B130: Rua São João | C130: 500
B135: Manibu | C135: 440
B137: TOTAL 4.1 | C137: =SUM(C129:C136)*2 -> 1880 | M137: =IF(C137>0,"M",IF(G137>0,"M²",IF(H137>0,"M³",IF(I137>0,"KG",IF(J137>0,"UND",""))))) -> M | O137: T
A139: 4.2 | B139: ESCORAMENTO DE MEIO FIO COM MATERIAL LOCAL COMPACTADO MANUALMENTE, EM FAIXA DE 0,50M | O139: 2
N141: Os comprimentos de meio fio foram obtidos pela consulta das peças do Volume II - Perças gráficas - Projetos de Pavimentação. Foi considerado ao final o dobro das medidas por ser considerado os dois lados da via (bordo esquerdo e direito).
B142: Rua São João | C142: =C130 -> 500
B147: Manibu | C147: 440
B149: TOTAL 4.2 | C149: =SUM(C141:C148)*2 -> 1880 | M149: =IF(C149>0,"M",IF(G149>0,"M²",IF(H149>0,"M³",IF(I149>0,"KG",IF(J149>0,"UND",""))))) -> M | O149: T
A151: 4.3 | B151: EXECUÇÃO DE SARJETA DE CONCRETO USINADO, MOLDADA IN LOCO EM TRECHO RETO, 30 CM BASE X 10 CM ALTURA. AF_06/2016 | O151: 2
N153: Os comprimentos de meio fio foram obtidos pela consulta das peças do Volume II - Perças gráficas - Projetos de Pavimentação. Foi considerado ao final o dobro das medidas por ser considerado os dois lados da via (bordo esquerdo e direito). Foi considerado a execução de sarjetas em todos os seguimentos projetados.
B154: Rua São João | C154: =C142 -> 500
B159: Manibu | C159: 440
B161: TOTAL 4.3 | C161: =SUM(C152:C159)*2 -> 1880 | M161: =IF(C161>0,"M",IF(G161>0,"M²",IF(H161>0,"M³",IF(I161>0,"KG",IF(J161>0,"UND",""))))) -> M | O161: T
A163: 5 | B163: SINALIZAÇÃO | O163: 1
A164: 5.1 | B164: FORNECIMENTO E INSTALAÇÃO DE SUPORTE DE MADEIRA PARA PLACAS DE SINALIZAÇÃO, EM SOLO, COM H= DE 2,5 M E SEÇÃO DE 7,5 X 7,5 CM. AF_03/2022 | O164: 2
B167: Rua São João | J167: 1
B172: Manibu | J172: 1
B173: TOTAL 5.1 | J173: =SUM(J166:J172) -> 2 | M173: =IF(C173>0,"M",IF(G173>0,"M²",IF(H173>0,"M³",IF(I173>0,"KG",IF(J173>0,"MÊS",""))))) -> MÊS | O173: T
A175: 5.2 | B175: Confecção de placa de sinalização totalmente refletiva | O175: 2
B177: Placa de sinalização | G177: =J185 -> 2
B179: Rua São João | J179: 1
B184: Manibu | J184: 1
B185: TOTAL 5.2 | G185: =J185 -> 2 | J185: =SUM(J177:J184) -> 2 | M185: =IF(C185>0,"M",IF(G185>0,"M²",IF(H185>0,"M³",IF(I185>0,"KG",IF(J185>0,"MÊS",""))))) -> M² | O185: T
A187: 6 | B187: SERVIÇOS COMPLEMENTARES | O187: 1
A189: 6.1 | B189: LIMPEZA DE RUAS (VARRIÇÃO E REMOÇÃO DE ENTULHOS) - REF. ORSE 6191 | O189: 2
B190: Área projetada do pavimento | N190: As áreas foram obtidas pela consulta as peças do Volume II - Perças gráficas - Projetos de Pavimentação.
B192: Rua São João | G192: =G54 -> 2052.18
B197: Manibu | G197: 2157.81
B199: TOTAL 6.1 | G199: =SUM(G191:G197) -> 4209.99 | M199: =IF(C199>0,"M",IF(G199>0,"M²",IF(H199>0,"M³",IF(I199>0,"KG",IF(J199>0,"UND",""))))) -> M² | O199: T
A201: 6.2 | B201: PINTURA DE MEIO-FIO COM TINTA BRANCA A BASE DE CAL (CAIAÇÃO). AF_05/2021 | O201: 2
N203: Os comprimentos de meio fio foram obtidos pela consulta das peças do Volume II - Perças gráficas - Projetos de Pavimentação. Foi considerado ao final o dobro das medidas por ser considerado os dois lados da via (bordo esquerdo e direito).
B204: Rua São João | C204: =C142 -> 500
B209: Manibu | C209: 440
B211: TOTAL 6.2 | C211: =SUM(C202:C210)*2 -> 1880 | M211: =IF(C211>0,"M",IF(G211>0,"M²",IF(H211>0,"M³",IF(I211>0,"KG",IF(J211>0,"UND",""))))) -> M | O211: T
A213: 6.3 | B213: TOTEM DE INAUGURAÇÃO EM CONCRETO ARMADO FCL=20MPA COM TEXTO EM BAIXO RELEVO - MODELO CODEVASF | O213: 3
B215: Inauguração da obra | J215: 2
B216: TOTAL 6.3 | J216: =J215 -> 2 | M216: =IF(C216>0,"M",IF(G216>0,"M²",IF(H216>0,"M³",IF(I216>0,"KG",IF(J216>0,"UND",""))))) -> UND | O216: T

Sheet DMTs
C1: Ministério do Desenvolvimento Regional - MDR
C2: Companhia de Desenvolvimento dos Vales do São Francisco e do Parnaíba
C3: 5ª Superintendência Regional
C4: Gerência Regional de Infraestrutura
C5: Unidade Regional de Estudos e Projetos
A6: DISTÂNCIAS MÉDIA DE TRANSPORTE
N7: Boca da Mata | R7: Traipu
B8: MATERIAL | C8: MUNICÍPIO | D8: DESTINO | E8: DMT (Km) | F8: FORNECEDOR | G8: CONTATO
B9: Pedra | C9: Traipu | D9: Penedo - | E9: 106 | F9: VR | G9: (82) 99900-2861
C10: Boca da Mata | D10: Penedo - | E10: 135
C11: Maribondo | D11: Penedo - | E11: 117 | F11: CTEPMV (Povoado Mata Verde) | G11: (82) 99607-6690
C12: União dos Palmares | D12: Penedo - | F12: JK Serviços e Construções | G12: 82 9987-8404
B13: Areia | C13: São Sebastião | D13: Penedo - | E13: 51.1 | F13: Mineradora Os Bebas | G13: 82 9945-5969
C14: Junqueiro | D14: Penedo - | E14: 49.5 | F14: JAF Transporte LTDA | G14: 82 9 9653-8877
I17: Maribondo | M17: São Sebastião
I33: Junqueiro

Sheet CPUs
C1: Composições Analíticas com Preço Unitário | E1: Bancos | G1: B.D.I. | I1: Encargos Sociais
C2: SEM DESONERAÇÃO -Execução de serviços de pavimentação em paralelepípedo em ruas do município de Penedo/AL | E2: SINAPI - 04/2024 - Alagoas SICRO3 - 01/2024 - Alagoas ORSE - 03/2024 - Sergipe | G2: 21,35% | I2: Não Desonerado: Horista: 115,22% Mensalista: 70,31%
A3: Composições Analíticas com Preço Unitário
A4: Composições Principais
A5: 1.1 | B5: Código | C5: Banco | D5: Descrição | E5: Tipo | G5: Und | H5: Quant. | I5: Valor Unit | J5: Total
A6: Composição | B6: 103689 | C6: SINAPI | D6: FORNECIMENTO E INSTALAÇÃO DE PLACA DE OBRA COM CHAPA GALVANIZADA E ESTRUTURA DE MADEIRA. AF_03/2022_PS | E6: PAVI - PAVIMENTAÇÃO | G6: m² | H6: 1 | I6: 312.7 | J6: 312.7
A7: Composição Auxiliar | B7: 102234 | C7: SINAPI | D7: PINTURA IMUNIZANTE PARA MADEIRA, 2 DEMÃOS. AF_01/2021 | E7: PINT - PINTURAS | G7: m² | H7: 0.5 | I7: 24.18 | J7: 12.09
A8: Composição Auxiliar | B8: 88262 | C8: SINAPI | D8: CARPINTEIRO DE FORMAS COM ENCARGOS COMPLEMENTARES | E8: SEDI - SERVIÇOS DIVERSOS | G8: H | H8: 0.3729 | I8: 24.5 | J8: 9.13
A9: Composição Auxiliar | B9: 88316 | C9: SINAPI | D9: SERVENTE COM ENCARGOS COMPLEMENTARES | E9: SEDI - SERVIÇOS DIVERSOS | G9: H | H9: 1.1186 | I9: 20.28 | J9: 22.68
A10: Insumo | B10: 00004509 | C10: SINAPI | D10: SARRAFO *2,5 X 10* CM EM PINUS, MISTA OU EQUIVALENTE DA REGIAO - BRUTA | E10: Material | G10: M | H10: 3.2083 | I10: 5.61 | J10: 17.99
A11: Insumo | B11: 00004813 | C11: SINAPI | D11: PLACA DE OBRA (PARA CONSTRUCAO CIVIL) EM CHAPA GALVANIZADA *N. 22*, ADESIVADA, DE *2,4 X 1,2* M (SEM POSTES PARA FIXACAO) | E11: Material | G11: m² | H11: 1 | I11: 250 | J11: 250
A12: Insumo | B12: 00005065 | C12: SINAPI | D12: PREGO DE ACO POLIDO COM CABECA 10 X 10 (7/8 X 17) | E12: Material | G12: KG | H12: 0.0113 | I12: 44.5 | J12: 0.5
A13: Insumo | B13: 00005069 | C13: SINAPI | D13: PREGO DE ACO POLIDO COM CABECA 17 X 27 (2 1/2 X 11) | E13: Material | G13: KG | H13: 0.0132 | I13: 23.85 | J13: 0.31
E14: MO sem LS => | F14: 12.46631354 | G14: LS => | H14: 14.36 | I14: MO com LS => | J14: 26.83
E15: Valor do BDI => | F15: 66.76 | H15: Valor com BDI => | J15: 379.46
A17: 1.3 | B17: Código | C17: Banco | D17: Descrição | E17: Tipo | G17: Und | H17: Quant. | I17: Valor Unit | J17: Total
A18: Composição | B18: GRD-2023-12-SP1 | C18: Próprio | D18: ADMINISTRAÇÃO LOCAL | E18: SERP - SERVIÇOS PRELIMINARES | G18: UND | H18: 1 | I18: 64096.8 | J18: 64096.8
A19: Composição Auxiliar | B19: 90777 | C19: SINAPI | D19: ENGENHEIRO CIVIL DE OBRA JUNIOR COM ENCARGOS COMPLEMENTARES | E19: SEDI - SERVIÇOS DIVERSOS | G19: H | H19: 120 | I19: 125.04 | J19: 15004.8
A20: Composição Auxiliar | B20: 90776 | C20: SINAPI | D20: ENCARREGADO GERAL COM ENCARGOS COMPLEMENTARES | E20: SEDI - SERVIÇOS DIVERSOS | G20: H | H20: 480 | I20: 26.2 | J20: 12576
A21: Composição Auxiliar | B21: 90772 | C21: SINAPI | D21: AUXILIAR DE ESCRITORIO COM ENCARGOS COMPLEMENTARES | E21: SEDI - SERVIÇOS DIVERSOS | G21: H | H21: 480 | I21: 16.66 | J21: 7996.8
A22: Composição Auxiliar | B22: 100309 | C22: SINAPI | D22: TÉCNICO EM SEGURANÇA DO TRABALHO COM ENCARGOS COMPLEMENTARES | E22: SEDI - SERVIÇOS DIVERSOS | G22: H | H22: 480 | I22: 27.79 | J22: 13339.2
A23: Insumo | B23: 2789 | C23: ORSE | D23: Veículo leve - pick up (97kw) h | E23: Equipamento | G23: un | H23: 1200 | I23: 10.35 | J23: 12420
A24: Insumo | B24: 00004222 | C24: SINAPI | D24: GASOLINA COMUM | E24: Material | G24: L | H24: 480 | I24: 5.75 | J24: 2760
E25: MO sem LS => | F25: 21006.41204 | G25: LS => | H25: 24203.59 | I25: MO com LS => | J25: 45210
E26: Valor do BDI => | F26: 13684.66 | H26: Valor com BDI => | J26: 77781.46
A28: 1.4 | B28: Código | C28: Banco | D28: Descrição | E28: Tipo | G28: Und | H28: Quant. | I28: Valor Unit | J28: Total
A29: Composição | B29: GRD-2023-12-SP2 | C29: Próprio | D29: MOBILIZAÇÃO E DESMOBILIZAÇÃO - POVOADO MARCAÇÃO | E29: ASTU - ASSENTAMENTO DE TUBOS E PECAS | G29: UND | H29: 1 | I29: 2410.86 | J29: 2410.86
A30: Composição Auxiliar | B30: 91386 | C30: SINAPI | D30: CAMINHÃO BASCULANTE 10 M3, TRUCADO CABINE SIMPLES, PESO BRUTO TOTAL 23.000 KG, CARGA ÚTIL MÁXIMA 15.935 KG, DISTÂNCIA ENTRE EIXOS 4,80 M, POTÊNCIA 230 CV INCLUSIVE CAÇAMBA METÁLICA - CHP DIURNO. AF_06/2014 | E30: CHOR - CUSTOS HORÁRIOS DE MÁQUINAS E EQUIPAMENTOS | G30: CHP | H30: 2 | I30: 264.18 | J30: 528.36
A31: Composição Auxiliar | B31: 5901 | C31: SINAPI | D31: CAMINHÃO PIPA 10.000 L TRUCADO, PESO BRUTO TOTAL 23.000 KG, CARGA ÚTIL MÁXIMA 15.935 KG, DISTÂNCIA ENTRE EIXOS 4,8 M, POTÊNCIA 230 CV, INCLUSIVE TANQUE DE AÇO PARA TRANSPORTE DE ÁGUA - CHP DIURNO. AF_06/2014 | E31: CHOR - CUSTOS HORÁRIOS DE MÁQUINAS E EQUIPAMENTOS | G31: CHP | H31: 2 | I31: 314.62 | J31: 629.24
A32: Composição Auxiliar | B32: 5932 | C32: SINAPI | D32: MOTONIVELADORA POTÊNCIA BÁSICA LÍQUIDA (PRIMEIRA MARCHA) 125 HP, PESO BRUTO 13032 KG, LARGURA DA LÂMINA DE 3,7 M - CHP DIURNO. AF_06/2014 | E32: CHOR - CUSTOS HORÁRIOS DE MÁQUINAS E EQUIPAMENTOS | G32: CHP | H32: 2 | I32: 249.6 | J32: 499.2
A33: Composição Auxiliar | B33: 91031 | C33: SINAPI | D33: CAMINHÃO TRUCADO (C/ TERCEIRO EIXO) ELETRÔNICO - POTÊNCIA 231CV - PBT = 22000KG - DIST. ENTRE EIXOS 5170 MM - INCLUI CARROCERIA FIXA ABERTA DE MADEIRA - CHP DIURNO. AF_06/2015 | E33: CHOR - CUSTOS HORÁRIOS DE MÁQUINAS E EQUIPAMENTOS | G33: CHP | H33: 2 | I33: 255.86 | J33: 511.72
A34: Composição Auxiliar | B34: 89035 | C34: SINAPI | D34: TRATOR DE PNEUS, POTÊNCIA 85 CV, TRAÇÃO 4X4, PESO COM LASTRO DE 4.675 KG - CHP DIURNO. AF_06/2014 | E34: CHOR - CUSTOS HORÁRIOS DE MÁQUINAS E EQUIPAMENTOS | G34: CHP | H34: 2 | I34: 121.17 | J34: 242.34
E35: MO sem LS => | F35: 94.1919896 | G35: LS => | H35: 108.53 | I35: MO com LS => | J35: 202.72
E36: Valor do BDI => | F36: 514.71 | H36: Valor com BDI => | J36: 2925.57
A38: 1.5 | B38: Código | C38: Banco | D38: Descrição | E38: Tipo | G38: Und | H38: Quant. | I38: Valor Unit | J38: Total
A39: Composição | B39: GRD-2023-12-SP3 | C39: Próprio | D39: PROJETO EXECUTIVO - POVOADO MARCAÇÃO | E39: SERP - SERVIÇOS PRELIMINARES | G39: UND | H39: 1 | I39: 5900 | J39: 5900
A40: Insumo | B40: 13587 | C40: ORSE | D40: Projeto de Pavimentação Km | E40: Serviços | G40: Km | H40: 1 | I40: 5900 | J40: 5900
E41: MO sem LS => | F41: 0 | G41: LS => | H41: 0 | I41: MO com LS => | J41: 0
E42: Valor do BDI => | F42: 1259.65 | H42: Valor com BDI => | J42: 7159.65
A44: 2.1 | B44: Código | C44: Banco | D44: Descrição | E44: Tipo | G44: Und | H44: Quant. | I44: Valor Unit | J44: Total
A45: Composição | B45: 78472 | C45: SINAPI | D45: SERVICOS TOPOGRAFICOS PARA PAVIMENTACAO, INCLUSIVE NOTA DE SERVICOS, ACOMPANHAMENTO E GREIDE | E45: SERT - SERVIÇOS TÉCNICOS | G45: m² | H45: 1 | I45: 0.4 | J45: 0.4
A46: Composição Auxiliar | B46: 88253 | C46: SINAPI | D46: AUXILIAR DE TOPÓGRAFO COM ENCARGOS COMPLEMENTARES | E46: SEDI - SERVIÇOS DIVERSOS | G46: H | H46: 0.0025 | I46: 19.79 | J46: 0.04
A47: Composição Auxiliar | B47: 88288 | C47: SINAPI | D47: NIVELADOR COM ENCARGOS COMPLEMENTARES | E47: SEDI - SERVIÇOS DIVERSOS | G47: H | H47: 0.0025 | I47: 17.1 | J47: 0.04
A48: Composição Auxiliar | B48: 88316 | C48: SINAPI | D48: SERVENTE COM ENCARGOS COMPLEMENTARES | E48: SEDI - SERVIÇOS DIVERSOS | G48: H | H48: 0.0075 | I48: 20.28 | J48: 0.15
A49: Composição Auxiliar | B49: 88597 | C49: SINAPI | D49: DESENHISTA DETALHISTA COM ENCARGOS COMPLEMENTARES | E49: SEDI - SERVIÇOS DIVERSOS | G49: H | H49: 0.002 | I49: 37.73 | J49: 0.07
A50: Composição Auxiliar | B50: 92145 | C50: SINAPI | D50: CAMINHONETE CABINE SIMPLES COM MOTOR 1.6 FLEX, CÂMBIO MANUAL, POTÊNCIA 101/104 CV, 2 PORTAS - CHP DIURNO. AF_11/2015 | E50: CHOR - CUSTOS HORÁRIOS DE MÁQUINAS E EQUIPAMENTOS | G50: CHP | H50: 0.001 | I50: 73.48 | J50: 0.07
A51: Insumo | B51: 00006204 | C51: SINAPI | D51: SARRAFO DE MADEIRA NAO APARELHADA *2,5 X 15* CM, MACARANDUBA, ANGELIM OU EQUIVALENTE DA REGIAO | E51: Material | G51: M | H51: 0.002886 | I51: 12.31 | J51: 0.03
E52: MO sem LS => | F52: 0.1161602082 | G52: LS => | H52: 0.13 | I52: MO com LS => | J52: 0.25
E53: Valor do BDI => | F53: 0.08 | H53: Valor com BDI => | J53: 0.48
A55: 2.2 | B55: Código | C55: Banco | D55: Descrição | E55: Tipo | G55: Und | H55: Quant. | I55: Valor Unit | J55: Total
A56: Composição | B56: 100575 | C56: SINAPI | D56: REGULARIZAÇÃO DE SUPERFÍCIES COM MOTONIVELADORA. AF_11/2019 | E56: PAVI - PAVIMENTAÇÃO | G56: m² | H56: 1 | I56: 0.13 | J56: 0.13
A57: Composição Auxiliar | B57: 5932 | C57: SINAPI | D57: MOTONIVELADORA POTÊNCIA BÁSICA LÍQUIDA (PRIMEIRA MARCHA) 125 HP, PESO BRUTO 13032 KG, LARGURA DA LÂMINA DE 3,7 M - CHP DIURNO. AF_06/2014 | E57: CHOR - CUSTOS HORÁRIOS DE MÁQUINAS E EQUIPAMENTOS | G57: CHP | H57: 0.0001 | I57: 249.6 | J57: 0.02
A58: Composição Auxiliar | B58: 5934 | C58: SINAPI | D58: MOTONIVELADORA POTÊNCIA BÁSICA LÍQUIDA (PRIMEIRA MARCHA) 125 HP, PESO BRUTO 13032 KG, LARGURA DA LÂMINA DE 3,7 M - CHI DIURNO. AF_06/2014 | E58: CHOR - CUSTOS HORÁRIOS DE MÁQUINAS E EQUIPAMENTOS | G58: CHI | H58: 0.001 | I58: 93.96 | J58: 0.09
A59: Composição Auxiliar | B59: 88316 | C59: SINAPI | D59: SERVENTE COM ENCARGOS COMPLEMENTARES | E59: SEDI - SERVIÇOS DIVERSOS | G59: H | H59: 0.001 | I59: 20.28 | J59: 0.02
E60: MO sem LS => | F60: 0.01393922498 | G60: LS => | H60: 0.02 | I60: MO com LS => | J60: 0.03
E61: Valor do BDI => | F61: 0.02 | H61: Valor com BDI => | J61: 0.15
A63: 2.3 | B63: Código | C63: Banco | D63: Descrição | E63: Tipo | G63: Und | H63: Quant. | I63: Valor Unit | J63: Total
A64: Composição | B64: 100974 | C64: SINAPI | D64: CARGA, MANOBRA E DESCARGA DE SOLOS E MATERIAIS GRANULARES EM CAMINHÃO BASCULANTE 10 M³ - CARGA COM PÁ CARREGADEIRA (CAÇAMBA DE 1,7 A 2,8 M³ / 128 HP) E DESCARGA LIVRE (UNIDADE: M3). AF_07/2020 | E64: TRAN - TRANSPORTES, CARGAS E DESCARGAS | G64: m³ | H64: 1 | I64: 8.28 | J64: 8.28
A65: Composição Auxiliar | B65: 5940 | C65: SINAPI | D65: PÁ CARREGADEIRA SOBRE RODAS, POTÊNCIA LÍQUIDA 128 HP, CAPACIDADE DA CAÇAMBA 1,7 A 2,8 M3, PESO OPERACIONAL 11632 KG - CHP DIURNO. AF_06/2014 | E65: CHOR - CUSTOS HORÁRIOS DE MÁQUINAS E EQUIPAMENTOS | G65: CHP | H65: 0.0083 | I65: 172.51 | J65: 1.43
A66: Composição Auxiliar | B66: 5942 | C66: SINAPI | D66: PÁ CARREGADEIRA SOBRE RODAS, POTÊNCIA LÍQUIDA 128 HP, CAPACIDADE DA CAÇAMBA 1,7 A 2,8 M3, PESO OPERACIONAL 11632 KG - CHI DIURNO. AF_06/2014 | E66: CHOR - CUSTOS HORÁRIOS DE MÁQUINAS E EQUIPAMENTOS | G66: CHI | H66: 0.0105 | I66: 64.89 | J66: 0.68
A67: Composição Auxiliar | B67: 91386 | C67: SINAPI | D67: CAMINHÃO BASCULANTE 10 M3, TRUCADO CABINE SIMPLES, PESO BRUTO TOTAL 23.000 KG, CARGA ÚTIL MÁXIMA 15.935 KG, DISTÂNCIA ENTRE EIXOS 4,80 M, POTÊNCIA 230 CV INCLUSIVE CAÇAMBA METÁLICA - CHP DIURNO. AF_06/2014 | E67: CHOR - CUSTOS HORÁRIOS DE MÁQUINAS E EQUIPAMENTOS | G67: CHP | H67: 0.0198 | I67: 264.18 | J67: 5.23
A68: Composição Auxiliar | B68: 91387 | C68: SINAPI | D68: CAMINHÃO BASCULANTE 10 M3, TRUCADO CABINE SIMPLES, PESO BRUTO TOTAL 23.000 KG, CARGA ÚTIL MÁXIMA 15.935 KG, DISTÂNCIA ENTRE EIXOS 4,80 M, POTÊNCIA 230 CV INCLUSIVE CAÇAMBA METÁLICA - CHI DIURNO. AF_06/2014 | E68: CHOR - CUSTOS HORÁRIOS DE MÁQUINAS E EQUIPAMENTOS | G68: CHI | H68: 0.0138 | I68: 68.39 | J68: 0.94
E69: MO sem LS => | F69: 0.4321159744 | G69: LS => | H69: 0.5 | I69: MO com LS => | J69: 0.93
E70: Valor do BDI => | F70: 1.76 | H70: Valor com BDI => | J70: 10.04
A72: 2.4 | B72: Código | C72: Banco | D72: Descrição | E72: Tipo | G72: Und | H72: Quant. | I72: Valor Unit | J72: Total
A73: Composição | B73: 95875 | C73: SINAPI | D73: TRANSPORTE COM CAMINHÃO BASCULANTE DE 10 M³, EM VIA URBANA PAVIMENTADA, DMT ATÉ 30 KM (UNIDADE: M3XKM). AF_07/2020 | E73: TRAN - TRANSPORTES, CARGAS E DESCARGAS | G73: M3XKM | H73: 1 | I73: 2.43 | J73: 2.43
A74: Composição Auxiliar | B74: 91386 | C74: SINAPI | D74: CAMINHÃO BASCULANTE 10 M3, TRUCADO CABINE SIMPLES, PESO BRUTO TOTAL 23.000 KG, CARGA ÚTIL MÁXIMA 15.935 KG, DISTÂNCIA ENTRE EIXOS 4,80 M, POTÊNCIA 230 CV INCLUSIVE CAÇAMBA METÁLICA - CHP DIURNO. AF_06/2014 | E74: CHOR - CUSTOS HORÁRIOS DE MÁQUINAS E EQUIPAMENTOS | G74: CHP | H74: 0.0083 | I74: 264.18 | J74: 2.19
A75: Composição Auxiliar | B75: 91387 | C75: SINAPI | D75: CAMINHÃO BASCULANTE 10 M3, TRUCADO CABINE SIMPLES, PESO BRUTO TOTAL 23.000 KG, CARGA ÚTIL MÁXIMA 15.935 KG, DISTÂNCIA ENTRE EIXOS 4,80 M, POTÊNCIA 230 CV INCLUSIVE CAÇAMBA METÁLICA - CHI DIURNO. AF_06/2014 | E75: CHOR - CUSTOS HORÁRIOS DE MÁQUINAS E EQUIPAMENTOS | G75: CHI | H75: 0.0036 | I75: 68.39 | J75: 0.24
E76: MO sem LS => | F76: 0.09757457485 | G76: LS => | H76: 0.11 | I76: MO com LS => | J76: 0.21
E77: Valor do BDI => | F77: 0.51 | H77: Valor com BDI => | J77: 2.94
A79: 3.1 | B79: Código | C79: Banco | D79: Descrição | E79: Tipo | G79: Und | H79: Quant. | I79: Valor Unit | J79: Total
A80: Composição | B80: 101169 | C80: SINAPI | D80: EXECUÇÃO DE PAVIMENTO EM PARALELEPÍPEDOS, REJUNTAMENTO COM ARGAMASSA TRAÇO 1:3 (CIMENTO E AREIA). AF_05/2020 | E80: PAVI - PAVIMENTAÇÃO | G80: m² | H80: 1 | I80: 73.75 | J80: 73.75
A81: Composição Auxiliar | B81: 5684 | C81: SINAPI | D81: ROLO COMPACTADOR VIBRATÓRIO DE UM CILINDRO AÇO LISO, POTÊNCIA 80 HP, PESO OPERACIONAL MÁXIMO 8,1 T, IMPACTO DINÂMICO 16,15 / 9,5 T, LARGURA DE TRABALHO 1,68 M - CHP DIURNO. AF_06/2014 | E81: CHOR - CUSTOS HORÁRIOS DE MÁQUINAS E EQUIPAMENTOS | G81: CHP | H81: 0.0031 | I81: 157.64 | J81: 0.48
A82: Composição Auxiliar | B82: 5685 | C82: SINAPI | D82: ROLO COMPACTADOR VIBRATÓRIO DE UM CILINDRO AÇO LISO, POTÊNCIA 80 HP, PESO OPERACIONAL MÁXIMO 8,1 T, IMPACTO DINÂMICO 16,15 / 9,5 T, LARGURA DE TRABALHO 1,68 M - CHI DIURNO. AF_06/2014 | E82: CHOR - CUSTOS HORÁRIOS DE MÁQUINAS E EQUIPAMENTOS | G82: CHI | H82: 0.1309 | I82: 61.36 | J82: 8.03
A83: Composição Auxiliar | B83: 88260 | C83: SINAPI | D83: CALCETEIRO COM ENCARGOS COMPLEMENTARES | E83: SEDI - SERVIÇOS DIVERSOS | G83: H | H83: 0.4021 | I83: 24.64 | J83: 9.9
A84: Composição Auxiliar | B84: 88316 | C84: SINAPI | D84: SERVENTE COM ENCARGOS COMPLEMENTARES | E84: SEDI - SERVIÇOS DIVERSOS | G84: H | H84: 0.4021 | I84: 20.28 | J84: 8.15
A85: Composição Auxiliar | B85: 88628 | C85: SINAPI | D85: ARGAMASSA TRAÇO 1:3 (EM VOLUME DE CIMENTO E AREIA MÉDIA ÚMIDA), PREPARO MECÂNICO COM BETONEIRA 400 L. AF_08/2019 | E85: SEDI - SERVIÇOS DIVERSOS | G85: m³ | H85: 0.0204 | I85: 530.35 | J85: 10.81
A86: Insumo | B86: 00000367 | C86: SINAPI | D86: AREIA GROSSA - POSTO JAZIDA/FORNECEDOR (RETIRADO NA JAZIDA, SEM TRANSPORTE) | E86: Material | G86: m³ | H86: 0.114 | I86: 96.24 | J86: 10.97
A87: Insumo | B87: 00004385 | C87: SINAPI | D87: PARALELEPIPEDO GRANITICO OU BASALTICO, PARA PAVIMENTACAO, SEM FRETE (VARIACAO REGIONAL DE PECAS POR M2) | E87: Material | G87: MIL | H87: 0.033 | I87: 770.3 | J87: 25.41
E88: MO sem LS => | F88: 7.541120714 | G88: LS => | H88: 8.69 | I88: MO com LS => | J88: 16.23
E89: Valor do BDI => | F89: 15.74 | H89: Valor com BDI => | J89: 89.49
A91: 3.3 | B91: Código | C91: Banco | D91: Descrição | E91: Tipo | G91: Und | H91: Quant. | I91: Valor Unit | J91: Total
A92: Composição | B92: 93590 | C92: SINAPI | D92: TRANSPORTE COM CAMINHÃO BASCULANTE DE 10 M³, EM VIA URBANA PAVIMENTADA, ADICIONAL PARA DMT EXCEDENTE A 30 KM (UNIDADE: M3XKM). AF_07/2020 (TRANSPORTE DE PEDRA) | E92: TRAN - TRANSPORTES, CARGAS E DESCARGAS | G92: M3XKM | H92: 1 | I92: 0.96 | J92: 0.96
A93: Composição Auxiliar | B93: 91386 | C93: SINAPI | D93: CAMINHÃO BASCULANTE 10 M3, TRUCADO CABINE SIMPLES, PESO BRUTO TOTAL 23.000 KG, CARGA ÚTIL MÁXIMA 15.935 KG, DISTÂNCIA ENTRE EIXOS 4,80 M, POTÊNCIA 230 CV INCLUSIVE CAÇAMBA METÁLICA - CHP DIURNO. AF_06/2014 | E93: CHOR - CUSTOS HORÁRIOS DE MÁQUINAS E EQUIPAMENTOS | G93: CHP | H93: 0.0033 | I93: 264.18 | J93: 0.87
A94: Composição Auxiliar | B94: 91387 | C94: SINAPI | D94: CAMINHÃO BASCULANTE 10 M3, TRUCADO CABINE SIMPLES, PESO BRUTO TOTAL 23.000 KG, CARGA ÚTIL MÁXIMA 15.935 KG, DISTÂNCIA ENTRE EIXOS 4,80 M, POTÊNCIA 230 CV INCLUSIVE CAÇAMBA METÁLICA - CHI DIURNO. AF_06/2014 | E94: CHOR - CUSTOS HORÁRIOS DE MÁQUINAS E EQUIPAMENTOS | G94: CHI | H94: 0.0014 | I94: 68.39 | J94: 0.09
E95: MO sem LS => | F95: 0.03717126661 | G95: LS => | H95: 0.04 | I95: MO com LS => | J95: 0.08
E96: Valor do BDI => | F96: 0.2 | H96: Valor com BDI => | J96: 1.16
A98: 4.1 | B98: Código | C98: Banco | D98: Descrição | E98: Tipo | G98: Und | H98: Quant. | I98: Valor Unit | J98: Total
A99: Composição | B99: 94273 | C99: SINAPI | D99: ASSENTAMENTO DE GUIA (MEIO-FIO) EM TRECHO RETO, CONFECCIONADA EM CONCRETO PRÉ-FABRICADO, DIMENSÕES 100X15X13X30 CM (COMPRIMENTO X BASE INFERIOR X BASE SUPERIOR X ALTURA), PARA VIAS URBANAS (USO VIÁRIO). AF_06/2016 | E99: DROP - DRENAGEM/OBRAS DE CONTENÇÃO / POÇOS DE VISITA E CAIXAS | G99: M | H99: 1 | I99: 56.59 | J99: 56.59
A100: Composição Auxiliar | B100: 88309 | C100: SINAPI | D100: PEDREIRO COM ENCARGOS COMPLEMENTARES | E100: SEDI - SERVIÇOS DIVERSOS | G100: H | H100: 0.2296 | I100: 24.84 | J100: 5.7
A101: Composição Auxiliar | B101: 88316 | C101: SINAPI | D101: SERVENTE COM ENCARGOS COMPLEMENTARES | E101: SEDI - SERVIÇOS DIVERSOS | G101: H | H101: 0.2296 | I101: 20.28 | J101: 4.65
A102: Composição Auxiliar | B102: 88629 | C102: SINAPI | D102: ARGAMASSA TRAÇO 1:3 (EM VOLUME DE CIMENTO E AREIA MÉDIA ÚMIDA), PREPARO MANUAL. AF_08/2019 | E102: SEDI - SERVIÇOS DIVERSOS | G102: m³ | H102: 0.0018 | I102: 642.48 | J102: 1.15
A103: Insumo | B103: 00000370 | C103: SINAPI | D103: AREIA MEDIA - POSTO JAZIDA/FORNECEDOR (RETIRADO NA JAZIDA, SEM TRANSPORTE) | E103: Material | G103: m³ | H103: 0.0066 | I103: 95 | J103: 0.62
A104: Insumo | B104: 00004059 | C104: SINAPI | D104: MEIO-FIO OU GUIA DE CONCRETO, PRE-MOLDADO, COMP 1 M, *30 X 12/15* CM (H X L1/L2) | E104: Material | G104: M | H104: 1.005 | I104: 44.25 | J104: 44.47
E105: MO sem LS => | F105: 3.58238082 | G105: LS => | H105: 4.13 | I105: MO com LS => | J105: 7.71
E106: Valor do BDI => | F106: 12.08 | H106: Valor com BDI => | J106: 68.67
A108: 4.2 | B108: Código | C108: Banco | D108: Descrição | E108: Tipo | G108: Und | H108: Quant. | I108: Valor Unit | J108: Total
A109: Composição | B109: 83718 | C109: SINAPI | D109: ESCORAMENTO DE MEIO FIO COM MATERIAL LOCAL COMPACTADO MANUALMENTE, EM FAIXA DE 0,50M | E109: DROP - DRENAGEM/OBRAS DE CONTENÇÃO / POÇOS DE VISITA E CAIXAS | G109: M | H109: 1 | I109: 4.66 | J109: 4.66
A110: Composição Auxiliar | B110: 88316 | C110: SINAPI | D110: SERVENTE COM ENCARGOS COMPLEMENTARES | E110: SEDI - SERVIÇOS DIVERSOS | G110: H | H110: 0.23 | I110: 20.28 | J110: 4.66
E111: MO sem LS => | F111: 1.510082706 | G111: LS => | H111: 1.74 | I111: MO com LS => | J111: 3.25
E112: Valor do BDI => | F112: 0.99 | H112: Valor com BDI => | J112: 5.65
A114: 4.3 | B114: Código | C114: Banco | D114: Descrição | E114: Tipo | G114: Und | H114: Quant. | I114: Valor Unit | J114: Total
A115: Composição | B115: 94287 | C115: SINAPI | D115: EXECUÇÃO DE SARJETA DE CONCRETO USINADO, MOLDADA IN LOCO EM TRECHO RETO, 30 CM BASE X 10 CM ALTURA. AF_06/2016 | E115: DROP - DRENAGEM/OBRAS DE CONTENÇÃO / POÇOS DE VISITA E CAIXAS | G115: M | H115: 1 | I115: 31.75 | J115: 31.75
A116: Composição Auxiliar | B116: 88309 | C116: SINAPI | D116: PEDREIRO COM ENCARGOS COMPLEMENTARES | E116: SEDI - SERVIÇOS DIVERSOS | G116: H | H116: 0.2326 | I116: 24.84 | J116: 5.77
A117: Composição Auxiliar | B117: 88316 | C117: SINAPI | D117: SERVENTE COM ENCARGOS COMPLEMENTARES | E117: SEDI - SERVIÇOS DIVERSOS | G117: H | H117: 0.2326 | I117: 20.28 | J117: 4.71
A118: Insumo | B118: 00000370 | C118: SINAPI | D118: AREIA MEDIA - POSTO JAZIDA/FORNECEDOR (RETIRADO NA JAZIDA, SEM TRANSPORTE) | E118: Material | G118: m³ | H118: 0.0099 | I118: 95 | J118: 0.94
A119: Insumo | B119: 00004517 | C119: SINAPI | D119: SARRAFO *2,5 X 7,5* CM EM PINUS, MISTA OU EQUIVALENTE DA REGIAO - BRUTA | E119: Material | G119: M | H119: 0.2 | I119: 3.87 | J119: 0.77
A120: Insumo | B120: 00006212 | C120: SINAPI | D120: TABUA *2,5 X 30 CM EM PINUS, MISTA OU EQUIVALENTE DA REGIAO - BRUTA | E120: Material | G120: M | H120: 0.0833 | I120: 18.33 | J120: 1.52
A121: Insumo | B121: 00034492 | C121: SINAPI | D121: CONCRETO USINADO BOMBEAVEL, CLASSE DE RESISTENCIA C20, COM BRITA 0 E 1, SLUMP = 100 +/- 20 MM, EXCLUI SERVICO DE BOMBEAMENTO (NBR 8953) | E121: Material | G121: m³ | H121: 0.0376 | I121: 480 | J121: 18.04
E122: MO sem LS => | F122: 3.531270328 | G122: LS => | H122: 4.07 | I122: MO com LS => | J122: 7.6
E123: Valor do BDI => | F123: 6.77 | H123: Valor com BDI => | J123: 38.52
A125: 5.1 | B125: Código | C125: Banco | D125: Descrição | E125: Tipo | G125: Und | H125: Quant. | I125: Valor Unit | J125: Total
A126: Composição | B126: 103694 | C126: SINAPI | D126: FORNECIMENTO E INSTALAÇÃO DE SUPORTE DE MADEIRA PARA PLACAS DE SINALIZAÇÃO, EM SOLO, COM H= DE 2,5 M E SEÇÃO DE 7,5 X 7,5 CM. AF_03/2022 | E126: PAVI - PAVIMENTAÇÃO | G126: UN | H126: 1 | I126: 108.42 | J126: 108.42
A127: Composição Auxiliar | B127: 102197 | C127: SINAPI | D127: PINTURA FUNDO NIVELADOR ALQUÍDICO BRANCO EM MADEIRA. AF_01/2021 | E127: PINT - PINTURAS | G127: m² | H127: 0.99 | I127: 21.77 | J127: 21.55
A128: Composição Auxiliar | B128: 102218 | C128: SINAPI | D128: PINTURA TINTA DE ACABAMENTO (PIGMENTADA) ESMALTE SINTÉTICO FOSCO EM MADEIRA, 2 DEMÃOS. AF_01/2021 | E128: PINT - PINTURAS | G128: m² | H128: 0.99 | I128: 15.65 | J128: 15.49
A129: Composição Auxiliar | B129: 102486 | C129: SINAPI | D129: CONCRETO FCK = 15MPA, TRAÇO 1:3,4:3,4 (EM MASSA SECA DE CIMENTO/ AREIA MÉDIA/ SEIXO ROLADO) - PREPARO MANUAL. AF_05/2021 | E129: FUES - FUNDAÇÕES E ESTRUTURAS | G129: m³ | H129: 0.0224 | I129: 582.5 | J129: 13.04
A130: Composição Auxiliar | B130: 88262 | C130: SINAPI | D130: CARPINTEIRO DE FORMAS COM ENCARGOS COMPLEMENTARES | E130: SEDI - SERVIÇOS DIVERSOS | G130: H | H130: 0.2138 | I130: 24.5 | J130: 5.23
A131: Composição Auxiliar | B131: 88316 | C131: SINAPI | D131: SERVENTE COM ENCARGOS COMPLEMENTARES | E131: SEDI - SERVIÇOS DIVERSOS | G131: H | H131: 0.6413 | I131: 20.28 | J131: 13
A132: Insumo | B132: 00004491 | C132: SINAPI | D132: PONTALETE *7,5 X 7,5* CM EM PINUS, MISTA OU EQUIVALENTE DA REGIAO - BRUTA | E132: Material | G132: M | H132: 3.63 | I132: 11.05 | J132: 40.11
E133: MO sem LS => | F133: 12.54065607 | G133: LS => | H133: 14.45 | I133: MO com LS => | J133: 26.99
E134: Valor do BDI => | F134: 23.14 | H134: Valor com BDI => | J134: 131.56
A136: 5.2 | B136: Código | C136: Banco | D136: Descrição | E136: Tipo | G136: Und | H136: Quant. | I136: Valor Unit | J136: Total
A137: Composição | B137: 10712 | C137: ORSE | D137: Confecção de placa de sinalização totalmente refletiva | E137: Sinalização Vertical | G137: m² | H137: 1 | I137: 96.74 | J137: 96.74
A138: Composição Auxiliar | B138: 10553 | C138: ORSE | D138: Encargos Complementares - Pintor | E138: Provisórios | G138: h | H138: 0.05 | I138: 3.79 | J138: 0.18
A139: Composição Auxiliar | B139: 10576 | C139: ORSE | D139: Encargos Complementares - Ajudante Pratico | E139: Provisórios | G139: h | H139: 0.6666 | I139: 3.72 | J139: 2.47
A140: Composição Auxiliar | B140: 10594 | C140: ORSE | D140: Encargos Complementares - Serralheiro ou Operador de Equipamento Leve | E140: Provisórios | G140: h | H140: 0.1666 | I140: 3.56 | J140: 0.59
A141: Composição Auxiliar | B141: 10605 | C141: ORSE | D141: Encargos Complementares - Montador | E141: Provisórios | G141: h | H141: 0.3333 | I141: 4.27 | J141: 1.42
A142: Insumo | B142: 54 | C142: ORSE | D142: Encarregado de turma - SICRO h | E142: Mão de Obra | G142: h | H142: 0.0833333 | I142: 18.28 | J142: 1.52
A143: Insumo | B143: 8820 | C143: ORSE | D143: Chapa de aço galvanizado nº 16 - e=1,55mm - dimensões 2,00x1,00m m2 | E143: Material | G143: un | H143: 0.1666667 | I143: 148.83 | J143: 24.8
A144: Insumo | B144: 10454 | C144: ORSE | D144: Ajudante-pratico/Meio-Oficial h | E144: Mão de Obra | G144: h | H144: 0.6666667 | I144: 13.9 | J144: 9.26
A145: Insumo | B145: 11420 | C145: ORSE | D145: Compressor de ar p/ pintura c/ filtro (2 kW) h | E145: Equipamento | G145: h | H145: 0.1666667 | I145: 6.55 | J145: 1.09
A146: Insumo | B146: 11421 | C146: ORSE | D146: Prensa excêntrica - (1kW) h | E146: Equipamento | G146: h | H146: 0.1666667 | I146: 13.23 | J146: 2.2
A147: Insumo | B147: 11422 | C147: ORSE | D147: Máquina universal de corte de chapa, de bancada, 4kw - C-6A h | E147: Equipamento | G147: h | H147: 0.1666667 | I147: 12.1 | J147: 2.01
A148: Insumo | B148: 11423 | C148: ORSE | D148: Guilhotina de bancada - (4kW) h | E148: Equipamento | G148: h | H148: 0.1666667 | I148: 15.19 | J148: 2.53
A149: Insumo | B149: 11424 | C149: ORSE | D149: Pelicula refletiva lentes inclusas m2 | E149: Material | G149: m² | H149: 0.2333333 | I149: 152.08 | J149: 35.48
A150: Insumo | B150: 00004783/SINAPI | C150: ORSE | D150: Pintor (horista) | E150: Mão de Obra | G150: h | H150: 0.05 | I150: 18.21 | J150: 0.91
A151: Insumo | B151: 00006110/SINAPI | C151: ORSE | D151: Serralheiro (horista) | E151: Mão de Obra | G151: h | H151: 0.1666667 | I151: 18.21 | J151: 3.03
A152: Insumo | B152: 00007288/SINAPI | C152: ORSE | D152: Tinta esmalte sintetico premium fosco | E152: Material | G152: l | H152: 0.0883333 | I152: 41.12 | J152: 3.63
A153: Insumo | B153: 00044497/SINAPI | C153: ORSE | D153: Montador de estruturas metalicas horista | E153: Mão de Obra | G153: h | H153: 0.3333333 | I153: 16.88 | J153: 5.62
E154: MO sem LS => | F154: 9.4507945 | G154: LS => | H154: 10.89 | I154: MO com LS => | J154: 20.34
E155: Valor do BDI => | F155: 20.65 | H155: Valor com BDI => | J155: 117.39
A157: 6.1 | B157: Código | C157: Banco | D157: Descrição | E157: Tipo | G157: Und | H157: Quant. | I157: Valor Unit | J157: Total
A158: Composição | B158: C-22-0117 | C158: Próprio | D158: LIMPEZA DE RUAS (VARRIÇÃO E REMOÇÃO DE ENTULHOS) - REF. ORSE 6191 | E158: ASTU - ASSENTAMENTO DE TUBOS E PECAS | G158: m² | H158: 1 | I158: 0.66 | J158: 0.66
A159: Composição Auxiliar | B159: 88316 | C159: SINAPI | D159: SERVENTE COM ENCARGOS COMPLEMENTARES | E159: SEDI - SERVIÇOS DIVERSOS | G159: H | H159: 0.0278 | I159: 20.28 | J159: 0.56
A160: Composição Auxiliar | B160: 95878 | C160: SINAPI | D160: TRANSPORTE COM CAMINHÃO BASCULANTE DE 10 M³, EM VIA URBANA PAVIMENTADA, DMT ATÉ 30 KM (UNIDADE: TXKM). AF_07/2020 | E160: TRAN - TRANSPORTES, CARGAS E DESCARGAS | G160: TXKM | H160: 0.0626 | I160: 1.63 | J160: 0.1
E161: MO sem LS => | F161: 0.1812099247 | G161: LS => | H161: 0.21 | I161: MO com LS => | J161: 0.39
E162: Valor do BDI => | F162: 0.14 | H162: Valor com BDI => | J162: 0.8
A164: 6.2 | B164: Código | C164: Banco | D164: Descrição | E164: Tipo | G164: Und | H164: Quant. | I164: Valor Unit | J164: Total
A165: Composição | B165: 102498 | C165: SINAPI | D165: PINTURA DE MEIO-FIO COM TINTA BRANCA A BASE DE CAL (CAIAÇÃO). AF_05/2021 | E165: PINT - PINTURAS | G165: M | H165: 1 | I165: 1.5 | J165: 1.5
A166: Composição Auxiliar | B166: 88310 | C166: SINAPI | D166: PINTOR COM ENCARGOS COMPLEMENTARES | E166: SEDI - SERVIÇOS DIVERSOS | G166: H | H166: 0.037 | I166: 26.34 | J166: 0.97
A167: Composição Auxiliar | B167: 88316 | C167: SINAPI | D167: SERVENTE COM ENCARGOS COMPLEMENTARES | E167: SEDI - SERVIÇOS DIVERSOS | G167: H | H167: 0.016 | I167: 20.28 | J167: 0.32
A168: Insumo | B168: 00011161 | C168: SINAPI | D168: CAL HIDRATADA PARA PINTURA | E168: Material | G168: KG | H168: 0.106 | I168: 2 | J168: 0.21
E169: MO sem LS => | F169: 0.4181767494 | G169: LS => | H169: 0.48 | I169: MO com LS => | J169: 0.9
E170: Valor do BDI => | F170: 0.32 | H170: Valor com BDI => | J170: 1.82
A172: 6.3 | B172: Código | C172: Banco | D172: Descrição | E172: Tipo | G172: Und | H172: Quant. | I172: Valor Unit | J172: Total
A173: Composição | B173: C-23-0016 | C173: Próprio | D173: TOTEM DE INAUGURAÇÃO EM CONCRETO ARMADO FCL=20MPA COM TEXTO EM BAIXO RELEVO - MODELO CODEVASF | E173: ASTU - ASSENTAMENTO DE TUBOS E PECAS | G173: UND | H173: 1 | I173: 593.11 | J173: 593.11
A174: Composição Auxiliar | B174: 104488 | C174: SINAPI | D174: COMPOSIÇÃO PARAMÉTRICA PARA EXECUÇÃO DE ESTRUTURAS DE CONCRETO ARMADO, PARA EDIFICAÇÃO INSTITUCIONAL TÉRREA, FCK = 25 MPA. AF_11/2022 | E174: FUES - FUNDAÇÕES E ESTRUTURAS | G174: m³ | H174: 0.14 | I174: 2657.13 | J174: 371.99
A175: Composição Auxiliar | B175: 102513 | C175: SINAPI | D175: PINTURA DE SÍMBOLOS E TEXTOS COM TINTA ACRÍLICA, DEMARCAÇÃO COM FITA ADESIVA E APLICAÇÃO COM ROLO. AF_05/2021 | E175: PINT - PINTURAS | G175: m² | H175: 2 | I175: 44.13 | J175: 88.26
A176: Composição Auxiliar | B176: 93358 | C176: SINAPI | D176: ESCAVAÇÃO MANUAL DE VALA COM PROFUNDIDADE MENOR OU IGUAL A 1,30 M. AF_02/2021 | E176: MOVT - MOVIMENTO DE TERRA | G176: m³ | H176: 0.15 | I176: 80.22 | J176: 12.03
A177: Composição Auxiliar | B177: 96135 | C177: SINAPI | D177: APLICAÇÃO MANUAL DE MASSA ACRÍLICA EM PAREDES EXTERNAS DE CASAS, DUAS DEMÃOS. AF_05/2017 | E177: PINT - PINTURAS | G177: m² | H177: 4.7 | I177: 25.71 | J177: 120.83
E178: MO sem LS => | F178: 79.49540006 | G178: LS => | H178: 91.59 | I178: MO com LS => | J178: 171.09
E179: Valor do BDI => | F179: 126.62 | H179: Valor com BDI => | J179: 719.73
A181: Composições Auxiliares
B182: Código | C182: Banco | D182: Descrição | E182: Tipo | G182: Und | H182: Quant. | I182: Valor Unit | J182: Total
A183: Composição | B183: 88238 | C183: SINAPI | D183: AJUDANTE DE ARMADOR COM ENCARGOS COMPLEMENTARES | E183: SEDI - SERVIÇOS DIVERSOS | G183: H | H183: 1 | I183: 21.25 | J183: 21.25
A184: Composição Auxiliar | B184: 95308 | C184: SINAPI | D184: CURSO DE CAPACITAÇÃO PARA AJUDANTE DE ARMADOR (ENCARGOS COMPLEMENTARES) - HORISTA | E184: SEDI - SERVIÇOS DIVERSOS | G184: H | H184: 1 | I184: 0.19 | J184: 0.19
A185: Insumo | B185: 00006114 | C185: SINAPI | D185: AJUDANTE DE ARMADOR (HORISTA) | E185: Mão de Obra | G185: H | H185: 1 | I185: 14.8 | J185: 14.8
A186: Insumo | B186: 00037370 | C186: SINAPI | D186: ALIMENTACAO - HORISTA (COLETADO CAIXA - ENCARGOS COMPLEMENTARES) | E186: Outros | G186: H | H186: 1 | I186: 2.22 | J186: 2.22
A187: Insumo | B187: 00037371 | C187: SINAPI | D187: TRANSPORTE - HORISTA (COLETADO CAIXA - ENCARGOS COMPLEMENTARES) | E187: Serviços | G187: H | H187: 1 | I187: 0.6 | J187: 0.6
A188: Insumo | B188: 00037372 | C188: SINAPI | D188: EXAMES - HORISTA (COLETADO CAIXA - ENCARGOS COMPLEMENTARES) | E188: Outros | G188: H | H188: 1 | I188: 1.34 | J188: 1.34
A189: Insumo | B189: 00037373 | C189: SINAPI | D189: SEGURO - HORISTA (COLETADO CAIXA - ENCARGOS COMPLEMENTARES) | E189: Taxas | G189: H | H189: 1 | I189: 0.04 | J189: 0.04
A190: Insumo | B190: 00043465 | C190: SINAPI | D190: FERRAMENTAS - FAMILIA PEDREIRO - HORISTA (ENCARGOS COMPLEMENTARES - COLETADO CAIXA) | E190: Equipamento | G190: H | H190: 1 | I190: 0.82 | J190: 0.82
A191: Insumo | B191: 00043489 | C191: SINAPI | D191: EPI - FAMILIA PEDREIRO - HORISTA (ENCARGOS COMPLEMENTARES - COLETADO CAIXA) | E191: Equipamento | G191: H | H191: 1 | I191: 1.24 | J191: 1.24
E192: MO sem LS => | F192: 6.9649661 | G192: LS => | H192: 8.03 | I192: MO com LS => | J192: 14.99
E193: Valor do BDI => | F193: 4.53 | H193: Valor com BDI => | J193: 25.78
B195: Código | C195: Banco | D195: Descrição | E195: Tipo | G195: Und | H195: Quant. | I195: Valor Unit | J195: Total
A196: Composição | B196: 88239 | C196: SINAPI | D196: AJUDANTE DE CARPINTEIRO COM ENCARGOS COMPLEMENTARES | E196: SEDI - SERVIÇOS DIVERSOS | G196: H | H196: 1 | I196: 21.17 | J196: 21.17
A197: Composição Auxiliar | B197: 95309 | C197: SINAPI | D197: CURSO DE CAPACITAÇÃO PARA AJUDANTE DE CARPINTEIRO (ENCARGOS COMPLEMENTARES) - HORISTA | E197: SEDI - SERVIÇOS DIVERSOS | G197: H | H197: 1 | I197: 0.25 | J197: 0.25
A198: Insumo | B198: 00006117 | C198: SINAPI | D198: CARPINTEIRO AUXILIAR (HORISTA) | E198: Mão de Obra | G198: H | H198: 1 | I198: 14.8 | J198: 14.8
A199: Insumo | B199: 00037370 | C199: SINAPI | D199: ALIMENTACAO - HORISTA (COLETADO CAIXA - ENCARGOS COMPLEMENTARES) | E199: Outros | G199: H | H199: 1 | I199: 2.22 | J199: 2.22
A200: Insumo | B200: 00037371 | C200: SINAPI | D200: TRANSPORTE - HORISTA (COLETADO CAIXA - ENCARGOS COMPLEMENTARES) | E200: Serviços | G200: H | H200: 1 | I200: 0.6 | J200: 0.6
A201: Insumo | B201: 00037372 | C201: SINAPI | D201: EXAMES - HORISTA (COLETADO CAIXA - ENCARGOS COMPLEMENTARES) | E201: Outros | G201: H | H201: 1 | I201: 1.34 | J201: 1.34
A202: Insumo | B202: 00037373 | C202: SINAPI | D202: SEGURO - HORISTA (COLETADO CAIXA - ENCARGOS COMPLEMENTARES) | E202: Taxas | G202: H | H202: 1 | I202: 0.04 | J202: 0.04
A203: Insumo | B203: 00043459 | C203: SINAPI | D203: FERRAMENTAS - FAMILIA CARPINTEIRO DE FORMAS - HORISTA (ENCARGOS COMPLEMENTARES - COLETADO CAIXA) | E203: Equipamento | G203: H | H203: 1 | I203: 0.49 | J203: 0.49
A204: Insumo | B204: 00043483 | C204: SINAPI | D204: EPI - FAMILIA CARPINTEIRO DE FORMAS - HORISTA (ENCARGOS COMPLEMENTARES - COLETADO CAIXA) | E204: Equipamento | G204: H | H204: 1 | I204: 1.43 | J204: 1.43
E205: MO sem LS => | F205: 6.9928445 | G205: LS => | H205: 8.06 | I205: MO com LS => | J205: 15.05
E206: Valor do BDI => | F206: 4.51 | H206: Valor com BDI => | J206: 25.68
B208: Código | C208: Banco | D208: Descrição | E208: Tipo | G208: Und | H208: Quant. | I208: Valor Unit | J208: Total
A209: Composição | B209: 96135 | C209: SINAPI | D209: APLICAÇÃO MANUAL DE MASSA ACRÍLICA EM PAREDES EXTERNAS DE CASAS, DUAS DEMÃOS. AF_05/2017 | E209: PINT - PINTURAS | G209: m² | H209: 1 | I209: 25.71 | J209: 25.71
A210: Composição Auxiliar | B210: 88310 | C210: SINAPI | D210: PINTOR COM ENCARGOS COMPLEMENTARES | E210: SEDI - SERVIÇOS DIVERSOS | G210: H | H210: 0.6344 | I210: 26.34 | J210: 16.71
A211: Composição Auxiliar | B211: 88316 | C211: SINAPI | D211: SERVENTE COM ENCARGOS COMPLEMENTARES | E211: SEDI - SERVIÇOS DIVERSOS | G211: H | H211: 0.1036 | I211: 20.28 | J211: 2.1
A212: Insumo | B212: 00003767 | C212: SINAPI | D212: LIXA EM FOLHA PARA PAREDE OU MADEIRA, NUMERO 120, COR VERMELHA | E212: Material | G212: UN | H212: 0.08287 | I212: 0.92 | J212: 0.07
A213: Insumo | B213: 00043651 | C213: SINAPI | D213: MASSA ACRILICA PARA SUPERFICIES INTERNAS E EXTERNAS | E213: Material | G213: KG | H213: 1.38709 | I213: 4.93 | J213: 6.83
E214: MO sem LS => | F214: 6.110026949 | G214: LS => | H214: 7.04 | I214: MO com LS => | J214: 13.15
E215: Valor do BDI => | F215: 5.48 | H215: Valor com BDI => | J215: 31.19
B217: Código | C217: Banco | D217: Descrição | E217: Tipo | G217: Und | H217: Quant. | I217: Valor Unit | J217: Total
A218: Composição | B218: 88629 | C218: SINAPI | D218: ARGAMASSA TRAÇO 1:3 (EM VOLUME DE CIMENTO E AREIA MÉDIA ÚMIDA), PREPARO MANUAL. AF_08/2019 | E218: SEDI - SERVIÇOS DIVERSOS | G218: m³ | H218: 1 | I218: 642.48 | J218: 642.48
A219: Composição Auxiliar | B219: 88316 | C219: SINAPI | D219: SERVENTE COM ENCARGOS COMPLEMENTARES | E219: SEDI - SERVIÇOS DIVERSOS | G219: H | H219: 8.57 | I219: 20.28 | J219: 173.79
A220: Insumo | B220: 00000370 | C220: SINAPI | D220: AREIA MEDIA - POSTO JAZIDA/FORNECEDOR (RETIRADO NA JAZIDA, SEM TRANSPORTE) | E220: Material | G220: m³ | H220: 1.07 | I220: 95 | J220: 101.65
A221: Insumo | B221: 00001379 | C221: SINAPI | D221: CIMENTO PORTLAND COMPOSTO CP II-32 | E221: Material | G221: KG | H221: 482.96 | I221: 0.76 | J221: 367.04
... 1264 more rows

Sheet ES
C1: Ministério do Desenvolvimento Regional - MDR
C2: Companhia de Desenvolvimento dos Vales do São Francisco e do Parnaíba
C3: 5ª Superintendência Regional
C4: Gerência Regional de Infraestrutura
C5: Unidade Regional de Estudos e Projetos
A6: ANEXO IV - ENCARGOS SOCIAIS e COMPOSIÇÃO DO BDI

Sheet COMPOSIÇÃO BDI
D2: Ministério do Desenvolvimento Regional - MDR
D3: Companhia de Desenvolvimento dos Vales do São Francisco e do Parnaíba
D4: 5ª Superintendência Regional
D5: Gerência Regional de Infraestrutura
A6: ANEXO IV - ENCARGOS SOCIAIS e COMPOSIÇÃO DO BDI | D6: Unidade Regional de Estudos e Projetos
B8: Considerações: | D8: Acórdão Nº 2622/2013 – TCU – Plenário de 25/9/2013
D13: Acórdão nº 2369/2011 - TCU - Plenário - DOU nº174 em 20 de setembro de 2011
B15: CONSTRUÇÃO DE RODOVIAS E FERROVIAS
B17: BDI SEM DESONERAÇÃO | I17: =B15 -> CONSTRUÇÃO DE RODOVIAS E FERROVIAS
B18: DETALHAMENTO BDI - SERVIÇOS
B19: ITEM | C19: DESCRIÇÃO | G19: ITEM FORM | H19: TOTAL | I19: 1º QUARTIL | J19: MEDIA | K19: 3º QUARTIL
B20: 1 | C20: ADMINISTRAÇÃO CENTRAL RATEIO | G20: AC | H20: 0.0401 | I20: =HLOOKUP($B$15&" 1",[38]DADOS!$B$7:$P$18,3,FALSE) -> 0.038 | J20: =HLOOKUP($B$15&" 2",[38]DADOS!$B$7:$P$18,3,FALSE) -> 0.0401 | K20: =HLOOKUP($B$15&" 3",[38]DADOS!$B$7:$P$18,3,FALSE) -> 0.0467
B21: 2 | C21: DESPESAS FINANCEIRAS | G21: DF | H21: 0.0111 | I21: =HLOOKUP($B$15&" 1",[38]DADOS!$B$7:$P$18,4,FALSE) -> 0.0102 | J21: =HLOOKUP($B$15&" 2",[38]DADOS!$B$7:$P$18,4,FALSE) -> 0.0111 | K21: =HLOOKUP($B$15&" 3",[38]DADOS!$B$7:$P$18,4,FALSE) -> 0.0121
B22: 3 | C22: RISCO, SEGURO E GARANTIA | G22: R | H22: =0.4%+0.56% -> 0.0096 | I22: =HLOOKUP($B$15&" 1",[38]DADOS!$B$7:$P$18,5,FALSE) -> 0.0082 | J22: =HLOOKUP($B$15&" 2",[38]DADOS!$B$7:$P$18,5,FALSE) -> 0.0096 | K22: =HLOOKUP($B$15&" 3",[38]DADOS!$B$7:$P$18,5,FALSE) -> 0.0171
B23: 4 | C23: EXPECTATIVA DE LUCRO | G23: L | H23: 0.073 | I23: =HLOOKUP($B$15&" 1",[38]DADOS!$B$7:$P$18,6,FALSE) -> 0.0664 | J23: =HLOOKUP($B$15&" 2",[38]DADOS!$B$7:$P$18,6,FALSE) -> 0.073 | K23: =HLOOKUP($B$15&" 3",[38]DADOS!$B$7:$P$18,6,FALSE) -> 0.0869
B24: 5 | C24: TRIBUTOS | G24: I | H24: =SUM(H25:H28) -> 0.0615
B25: 05.01 | D25: PIS | H25: 0.0065
B26: 05.02 | D26: COFINS | H26: 0.03
B27: 05.03 | D27: ISS | H27: 0.025
B28: 05.04 | D28: Contribuição Sobre Receita Bruta | H28: 0
B29: BDI (%) = ((((1+AC+R)*(1+DF)*(1+L))/(1-I))-1) | H29: =ROUND((((1+H20+H22)*(1+H21)*(1+H23))/(1-H24))-1,4) -> 0.2135 | I29: =HLOOKUP($B$15&" 1",[38]DADOS!$B$7:$P$18,12,FALSE) -> 0.196 | J29: =HLOOKUP($B$15&" 2",[38]DADOS!$B$7:$P$18,12,FALSE) -> 0.2097 | K29: =HLOOKUP($B$15&" 3",[38]DADOS!$B$7:$P$18,12,FALSE) -> 0.2423
B30: * VALORES DE PIS E COFINS SEGUNDO ALIQ MÁXIMA DO REGIME CUMULATIVO
B33: BDI COM DESONERAÇÃO
B34: DETALHAMENTO BDI - SERVIÇOS
B35: ITEM | C35: DESCRIÇÃO | G35: ITEM FORM | H35: TOTAL
B36: 1 | C36: ADMINISTRAÇÃO CENTRAL RATEIO | G36: AC | H36: =H20 -> 0.0401
B37: 2 | C37: DESPESAS FINANCEIRAS | G37: DF | H37: =H21 -> 0.0111
B38: 3 | C38: RISCO, SEGURO E GARANTIA | G38: R | H38: =H22 -> 0.0096
B39: 4 | C39: EXPECTATIVA DE LUCRO | G39: L | H39: =H23 -> 0.073
B40: 5 | C40: TRIBUTOS | G40: I | H40: =SUM(H41:H44) -> 0.1065
B41: 05.01 | D41: PIS | H41: =H25 -> 0.0065
B42: 05.02 | D42: COFINS | H42: =H26 -> 0.03
B43: 05.03 | D43: ISS | H43: =H27 -> 0.025
B44: 05.04 | D44: Contribuição Sobre Receita Bruta | H44: 0.045
B45: BDI (%) = ((((1+AC+R)*(1+DF)*(1+L))/(1-I))-1) | H45: =ROUND((((1+H36+H38)*(1+H37)*(1+H39))/(1-H40))-1,4) -> 0.2746
B46: =B30 -> * VALORES DE PIS E COFINS SEGUNDO ALIQ MÁXIMA DO REGIME CUMULATIVO
B47: ** PERCENTUAL DE CSRB EM CONFORMIDADE COM AS LEIS Nº 12.546/2011 E Nº 13.161/2015
B50: BDI SEM DESONERAÇÃO
B51: DETALHAMENTO BDI DIFERENCIADO - MATERIAIS | I51: BDI DE MATERIAIS
B52: ITEM | C52: DESCRIÇÃO | G52: ITEM FORM | H52: TOTAL | I52: 1º QUARTIL | J52: MEDIA | K52: 3º QUARTIL
B53: 1 | C53: ADMINISTRAÇÃO CENTRAL RATEIO | G53: AC | H53: 0.0345 | I53: 0.015 | J53: 0.0345 | K53: 0.0449
B54: 2 | C54: DESPESAS FINANCEIRAS | G54: DF | H54: 0.0085 | I54: 0.0085 | J54: 0.0085 | K54: 0.0111
B55: 3 | C55: RISCO, SEGURO E GARANTIA | G55: R | H55: =0.48%+0.85% -> 0.0133 | I55: =0.3%+0.56% -> 0.0086 | J55: =0.48%+0.85% -> 0.0133 | K55: =0.82%+0.89% -> 0.0171
B56: 4 | C56: EXPECTATIVA DE LUCRO | G56: L | H56: 0.0511 | I56: 0.035 | J56: 0.0511 | K56: 0.0622
B57: 5 | C57: TRIBUTOS | G57: I | H57: =SUM(H58:H61) -> 0.0365
B58: 05.01 | D58: PIS | H58: =$H$41 -> 0.0065
B59: 05.02 | D59: COFINS | H59: =H42 -> 0.03
B60: 05.03 | D60: ISS | H60: 0
B61: 05.04 | D61: Contribuição Sobre Receita Bruta | H61: 0
B62: BDI (%) = ((((1+AC+R)*(1+DF)*(1+L))/(1-I))-1) | H62: =ROUND((((1+H53+H55)*(1+H54)*(1+H56))/(1-H57))-1,4) -> 0.1528 | I62: 0.111 | J62: 0.1402 | K62: 0.168
B63: =B46 -> * VALORES DE PIS E COFINS SEGUNDO ALIQ MÁXIMA DO REGIME CUMULATIVO
B64: ** PARA INSUMOS ASFÁLTICOS COMO CAP, EMULSÃO, ETC., CONSIDERAR BDI = 15% (NÃO PRECISA DETALHAR)
B66: BDI COM DESONERAÇÃO
B67: DETALHAMENTO BDI DIFERENCIADO - MATERIAIS | I67: BDI DE MATERIAIS
B68: ITEM | C68: DESCRIÇÃO | G68: ITEM FORM | H68: TOTAL | I68: 1º QUARTIL | J68: MEDIA | K68: 3º QUARTIL
B69: 1 | C69: ADMINISTRAÇÃO CENTRAL RATEIO | G69: AC | H69: 0.0345 | I69: 0.015 | J69: 0.0345 | K69: 0.0449
B70: 2 | C70: DESPESAS FINANCEIRAS | G70: DF | H70: 0.0085 | I70: 0.0085 | J70: 0.0085 | K70: 0.0111
B71: 3 | C71: RISCO, SEGURO E GARANTIA | G71: R | H71: =0.48%+0.85% -> 0.0133 | I71: =0.3%+0.56% -> 0.0086 | J71: =0.48%+0.85% -> 0.0133 | K71: =0.82%+0.89% -> 0.0171
B72: 4 | C72: EXPECTATIVA DE LUCRO | G72: L | H72: 0.0511 | I72: 0.035 | J72: 0.0511 | K72: 0.0622
B73: 5 | C73: TRIBUTOS | G73: I | H73: =SUM(H74:H77) -> 0.0815
B74: 05.01 | D74: PIS | H74: =$H$41 -> 0.0065
B75: 05.02 | D75: COFINS | H75: =$H$42 -> 0.03
B76: 05.03 | D76: ISS | H76: 0
B77: 05.04 | D77: Contribuição Sobre Receita Bruta | H77: 0.045
B78: BDI (%) = ((((1+AC+R)*(1+DF)*(1+L))/(1-I))-1) | H78: =ROUND((((1+H69+H71)*(1+H70)*(1+H72))/(1-H73))-1,4) -> 0.2093 | I78: 0.111 | J78: 0.1402 | K78: 0.168
B79: =B62 -> BDI (%) = ((((1+AC+R)*(1+DF)*(1+L))/(1-I))-1)
B80: ** PARA INSUMOS ASFÁLTICOS COMO CAP, EMULSÃO, ETC., CONSIDERAR BDI = 15% (NÃO PRECISA DETALHAR)
B82: ENCARGOS SOCIAIS SOBRE A MÃO DE OBRA 12-2023
B83: CÓDIGO | C83: DESCRIÇÃO | E83: COM DESONERAÇÃO | G83: SEM DESONERAÇÃO
E84: HORISTA % | F84: MENSALISTA % | G84: HORISTA % | H84: MENSALISTA %
B85: GRUPO A
B86: A1 | C86: INSS | E86: 0 | F86: 0 | G86: 20 | H86: 20
B87: A2 | C87: SESI | E87: 1.5 | F87: 1.5 | G87: 1.5 | H87: 1.5
B88: A3 | C88: SENAI | E88: 1 | F88: 1 | G88: 1 | H88: 1
B89: A4 | C89: INCRA | E89: 0.2 | F89: 0.2 | G89: 0.2 | H89: 0.2
B90: A5 | C90: SEBRAE | E90: 0.6 | F90: 0.6 | G90: 0.6 | H90: 0.6
B91: A6 | C91: Salário Educação | E91: 2.5 | F91: 2.5 | G91: 2.5 | H91: 2.5
B92: A7 | C92: Seguro Contra Acidentes de Trabalho | E92: 3 | F92: 3 | G92: 3 | H92: 3
B93: A8 | C93: FGTS | E93: 8 | F93: 8 | G93: 8 | H93: 8
B94: A9 | C94: SECONCI | E94: 0 | F94: 0 | G94: 0 | H94: 0
B95: A | C95: Total | E95: =SUM(E86:E94) -> 16.8 | F95: =SUM(F86:F94) -> 16.8 | G95: =SUM(G86:G94) -> 36.8 | H95: =SUM(H86:H94) -> 36.8
B96: GRUPO B
B97: B1 | C97: Repouso Semanal Remunerado | E97: 18.05 | F97: - | G97: 18.05 | H97: -
B98: B2 | C98: Feriados | E98: 4.67 | F98: - | G98: 4.67 | H98: -
B99: B3 | C99: Auxílio-enfermidade | E99: 0.86 | F99: 0.64 | G99: 0.86 | H99: 0.64
B100: B4 | C100: 13° salário | E100: 11.15 | F100: 8.33 | G100: 11.15 | H100: 8.33
B101: B5 | C101: Licença-paternidade | E101: 0.06 | F101: 0.04 | G101: 0.06 | H101: 0.04
B102: B6 | C102: Faltas Justificadas | E102: 0.74 | F102: 0.56 | G102: 0.74 | H102: 0.56
B103: B7 | C103: Dias de chuva | E103: 1.84 | F103: - | G103: 1.84 | H103: -
B104: B8 | C104: Auxílio Acidente de Trabalho | E104: 0.1 | F104: 0.08 | G104: 0.1 | H104: 0.08
B105: B9 | C105: Férias Gozadas | E105: 12.52 | F105: 9.36 | G105: 12.52 | H105: 9.36
B106: B10 | C106: Salário Maternidade | E106: 0.04 | F106: 0.03 | G106: 0.04 | H106: 0.03
B107: B | C107: Total | E107: =SUM(E97:E106) -> 50.03 | F107: =SUM(F97:F106) -> 19.04 | G107: =SUM(G97:G106) -> 50.03 | H107: =SUM(H97:H106) -> 19.04
B108: GRUPO C
B109: C1 | C109: Aviso Prévio Indenizado | E109: 4.85 | F109: 3.62 | G109: 4.85 | H109: 3.62
B110: C2 | C110: Aviso Prévio Trabalhado | E110: 0.11 | F110: 0.09 | G110: 0.11 | H110: 0.09
B111: C3 | C111: Férias Indenizadas | E111: 1.67 | F111: 1.25 | G111: 1.67 | H111: 1.25
B112: C4 | C112: Depósito Rescisão Sem Justa Causa | E112: 2.51 | F112: 1.88 | G112: 2.51 | H112: 1.88
B113: C5 | C113: Indenização Adicional | E113: 0.41 | F113: 0.3 | G113: 0.41 | H113: 0.3
B114: C | C114: Total | E114: =SUM(E109:E113) -> 9.55 | F114: =SUM(F109:F113) -> 7.14 | G114: 9.55 | H114: 7.14
B115: GRUPO D
B116: D1 | C116: Reincidência de A sobre B | E116: =ROUND(E95*E107/100,2) -> 8.41 | F116: =ROUND(F95*F107/100,2) -> 3.2 | G116: 18.41 | H116: 7.01
B117: D2 | C117: Reincidência de Grupo A sobre Aviso Prévio Trabalhado e Reincidência do FGTS sobre Aviso Prévio Indenizado | E117: =ROUND((E95*E110+E93*E109)/100,2) -> 0.41 | F117: =ROUND((F95*F110+F93*F109)/100,2) -> 0.3 | G117: 0.43 | H117: 0.32
B118: D | C118: Total | E118: =ROUND(SUM(E116:E117),2) -> 8.82 | F118: =ROUND(SUM(F116:F117),2) -> 3.5 | G118: 18.84 | H118: 7.33
B120: T O T A L (%) | E120: =E95+E107+E114+E118 -> 85.2 | F120: =F95+F107+F114+F118 -> 46.48 | G120: 115.22 | H120: =SUM(H95+H107+H114+H118) -> 70.31

Sheet Curva ABC de Serviços
C1: Obra | D1: Bancos | E1: B.D.I. | H1: Encargos Sociais
C2: SEM DESONERAÇÃO -Execução de serviços de pavimentação em paralelepípedo em ruas do município de Penedo/AL | D2: SINAPI - 04/2024 - Alagoas SICRO3 - 01/2024 - Alagoas ORSE - 03/2024 - Sergipe | E2: 21,35% | H2: Não Desonerado: Horista: 115,22% Mensalista: 70,31%
A3: Curva ABC de Serviços
A4: Código | B4: Banco | C4: Descrição | D4: Tipo | E4: Und | F4: Quant. | G4: Valor Unit | H4: Total | I4: Peso (%) | J4: Peso Acumulado (%)
A5: 101169 | B5: SINAPI | C5: EXECUÇÃO DE PAVIMENTO EM PARALELEPÍPEDOS, REJUNTAMENTO COM ARGAMASSA TRAÇO 1:3 (CIMENTO E AREIA). AF_05/2020 | D5: PAVI - PAVIMENTAÇÃO | E5: m² | F5: 4.209,99 | G5: 89,49 | H5: 376.752,00 | I5: 40,58 | J5: 40,58
A6: 94273 | B6: SINAPI | C6: ASSENTAMENTO DE GUIA (MEIO-FIO) EM TRECHO RETO, CONFECCIONADA EM CONCRETO PRÉ-FABRICADO, DIMENSÕES 100X15X13X30 CM (COMPRIMENTO X BASE INFERIOR X BASE SUPERIOR X ALTURA), PARA VIAS URBANAS (USO VIÁRIO). AF_06/2016 | D6: DROP - DRENAGEM/OBRAS DE CONTENÇÃO / POÇOS DE VISITA E CAIXAS | E6: M | F6: 1.880,0 | G6: 68,67 | H6: 129.099,60 | I6: 13,90 | J6: 54,48
A7: GRD-2023-12-SP1 | B7: Próprio | C7: ADMINISTRAÇÃO LOCAL | D7: SERP - SERVIÇOS PRELIMINARES | E7: UND | F7: 1,0 | G7: 77.781,46 | H7: 77.781,46 | I7: 8,38 | J7: 62,86
A8: 93590 | B8: SINAPI | C8: TRANSPORTE COM CAMINHÃO BASCULANTE DE 10 M³, EM VIA URBANA PAVIMENTADA, ADICIONAL PARA DMT EXCEDENTE A 30 KM (UNIDADE: M3XKM). AF_07/2020 (TRANSPORTE DE PEDRA) | D8: TRAN - TRANSPORTES, CARGAS E DESCARGAS | E8: M3XKM | F8: 63.655,05 | G8: 1,16 | H8: 73.839,85 | I8: 7,95 | J8: 70,81
A9: 94287 | B9: SINAPI | C9: EXECUÇÃO DE SARJETA DE CONCRETO USINADO, MOLDADA IN LOCO EM TRECHO RETO, 30 CM BASE X 10 CM ALTURA. AF_06/2016 | D9: DROP - DRENAGEM/OBRAS DE CONTENÇÃO / POÇOS DE VISITA E CAIXAS | E9: M | F9: 1.880,0 | G9: 38,52 | H9: 72.417,60 | I9: 7,80 | J9: 78,61
A10: 95875 | B10: SINAPI | C10: TRANSPORTE COM CAMINHÃO BASCULANTE DE 10 M³, EM VIA URBANA PAVIMENTADA, DMT ATÉ 30 KM (UNIDADE: M3XKM). AF_07/2020 (TRANSPORTE DE PEDRA) | D10: TRAN - TRANSPORTES, CARGAS E DESCARGAS | E10: M3XKM | F10: 21.218,35 | G10: 2,94 | H10: 62.381,94 | I10: 6,72 | J10: 85,33
A11: 95875 | B11: SINAPI | C11: TRANSPORTE COM CAMINHÃO BASCULANTE DE 10 M³, EM VIA URBANA PAVIMENTADA, DMT ATÉ 30 KM (UNIDADE: M3XKM). AF_07/2020 (TRANSPORTE DE AREIA) | D11: TRAN - TRANSPORTES, CARGAS E DESCARGAS | E11: M3XKM | F11: 18.944,96 | G11: 2,94 | H11: 55.698,18 | I11: 6,00 | J11: 91,33
A12: 95875 | B12: SINAPI | C12: TRANSPORTE COM CAMINHÃO BASCULANTE DE 10 M³, EM VIA URBANA PAVIMENTADA, DMT ATÉ 30 KM (UNIDADE: M3XKM). AF_07/2020 | D12: TRAN - TRANSPORTES, CARGAS E DESCARGAS | E12: M3XKM | F12: 5.004,06 | G12: 2,94 | H12: 14.711,93 | I12: 1,58 | J12: 92,92
A13: 93590 | B13: SINAPI | C13: TRANSPORTE COM CAMINHÃO BASCULANTE DE 10 M³, EM VIA URBANA PAVIMENTADA, ADICIONAL PARA DMT EXCEDENTE A 30 KM (UNIDADE: M3XKM). AF_07/2020 (TRANSPORTE DE AREIA) | D13: TRAN - TRANSPORTES, CARGAS E DESCARGAS | E13: M3XKM | F13: 12.629,97 | G13: 1,16 | H13: 14.650,76 | I13: 1,58 | J13: 94,49
A14: 83718 | B14: SINAPI | C14: ESCORAMENTO DE MEIO FIO COM MATERIAL LOCAL COMPACTADO MANUALMENTE, EM FAIXA DE 0,50M | D14: DROP - DRENAGEM/OBRAS DE CONTENÇÃO / POÇOS DE VISITA E CAIXAS | E14: M | F14: 1.880,0 | G14: 5,65 | H14: 10.622,00 | I14: 1,14 | J14: 95,64
A15: 100974 | B15: SINAPI | C15: CARGA, MANOBRA E DESCARGA DE SOLOS E MATERIAIS GRANULARES EM CAMINHÃO BASCULANTE 10 M³ - CARGA COM PÁ CARREGADEIRA (CAÇAMBA DE 1,7 A 2,8 M³ / 128 HP) E DESCARGA LIVRE (UNIDADE: M3). AF_07/2020 | D15: TRAN - TRANSPORTES, CARGAS E DESCARGAS | E15: m³ | F15: 1.000,81 | G15: 10,04 | H15: 10.048,13 | I15: 1,08 | J15: 96,72
A16: GRD-2023-12-SP3 | B16: Próprio | C16: PROJETO EXECUTIVO - POVOADO MARCAÇÃO | D16: SERP - SERVIÇOS PRELIMINARES | E16: UND | F16: 1,0 | G16: 7.159,65 | H16: 7.159,65 | I16: 0,77 | J16: 97,49
A17: GRD-2023-12-SP2 | B17: Próprio | C17: MOBILIZAÇÃO E DESMOBILIZAÇÃO - POVOADO MARCAÇÃO | D17: ASTU - ASSENTAMENTO DE TUBOS E PECAS | E17: UND | F17: 2,0 | G17: 2.925,57 | H17: 5.851,14 | I17: 0,63 | J17: 98,12
A18: 103689 | B18: SINAPI | C18: FORNECIMENTO E INSTALAÇÃO DE PLACA DE OBRA COM CHAPA GALVANIZADA E ESTRUTURA DE MADEIRA. AF_03/2022_PS | D18: PAVI - PAVIMENTAÇÃO | E18: m² | F18: 12,96 | G18: 379,46 | H18: 4.917,80 | I18: 0,53 | J18: 98,65
A19: 102498 | B19: SINAPI | C19: PINTURA DE MEIO-FIO COM TINTA BRANCA A BASE DE CAL (CAIAÇÃO). AF_05/2021 | D19: PINT - PINTURAS | E19: M | F19: 1.880,0 | G19: 1,82 | H19: 3.421,60 | I19: 0,37 | J19: 99,02
A20: C-22-0117 | B20: Próprio | C20: LIMPEZA DE RUAS (VARRIÇÃO E REMOÇÃO DE ENTULHOS) - REF. ORSE 6191 | D20: ASTU - ASSENTAMENTO DE TUBOS E PECAS | E20: m² | F20: 4.209,99 | G20: 0,80 | H20: 3.367,99 | I20: 0,36 | J20: 99,38
A21: 78472 | B21: SINAPI | C21: SERVICOS TOPOGRAFICOS PARA PAVIMENTACAO, INCLUSIVE NOTA DE SERVICOS, ACOMPANHAMENTO E GREIDE | D21: SERT - SERVIÇOS TÉCNICOS | E21: m² | F21: 4.209,99 | G21: 0,48 | H21: 2.020,79 | I21: 0,22 | J21: 99,60
A22: C-23-0016 | B22: Próprio | C22: TOTEM DE INAUGURAÇÃO EM CONCRETO ARMADO FCL=20MPA COM TEXTO EM BAIXO RELEVO - MODELO CODEVASF | D22: ASTU - ASSENTAMENTO DE TUBOS E PECAS | E22: UND | F22: 2,0 | G22: 719,73 | H22: 1.439,46 | I22: 0,16 | J22: 99,76
A23: 103689 | B23: SINAPI | C23: FORNECIMENTO E INSTALAÇÃO DE PLACA DE OBRA COM CHAPA GALVANIZADA E ESTRUTURA DE MADEIRA. AF_03/2022_PS (PLACA IMA) | D23: PAVI - PAVIMENTAÇÃO | E23: m² | F23: 3,0 | G23: 379,46 | H23: 1.138,38 | I23: 0,12 | J23: 99,88
A24: 100575 | B24: SINAPI | C24: REGULARIZAÇÃO DE SUPERFÍCIES COM MOTONIVELADORA. AF_11/2019 | D24: PAVI - PAVIMENTAÇÃO | E24: m² | F24: 4.209,99 | G24: 0,15 | H24: 631,49 | I24: 0,07 | J24: 99,95
A25: 103694 | B25: SINAPI | C25: FORNECIMENTO E INSTALAÇÃO DE SUPORTE DE MADEIRA PARA PLACAS DE SINALIZAÇÃO, EM SOLO, COM H= DE 2,5 M E SEÇÃO DE 7,5 X 7,5 CM. AF_03/2022 | D25: PAVI - PAVIMENTAÇÃO | E25: UN | F25: 2,0 | G25: 131,56 | H25: 263,12 | I25: 0,03 | J25: 99,97
A26: 10712 | B26: ORSE | C26: Confecção de placa de sinalização totalmente refletiva | D26: Sinalização Vertical | E26: m² | F26: 2,0 | G26: 117,39 | H26: 234,78 | I26: 0,03 | J26: 100,00
F28: Total sem BDI | H28: 765839.39
F29: Total do BDI | H29: 162610.26
F30: Total Geral | H30: 928449.65
A32: _______________________________________________________________ GRD / UEP 2 Setor de Engenharia

Sheet Curva ABC de Insumos
C1: Obra | D1: Bancos | E1: B.D.I. | H1: Encargos Sociais
C2: SEM DESONERAÇÃO -Execução de serviços de pavimentação em paralelepípedo em ruas do município de Penedo/AL | D2: SINAPI - 04/2024 - Alagoas SICRO3 - 01/2024 - Alagoas ORSE - 03/2024 - Sergipe | E2: 21,35% | H2: Não Desonerado: Horista: 115,22% Mensalista: 70,31%
A3: Curva ABC de Insumos
A4: Código | B4: Banco | C4: Descrição | D4: Tipo | E4: Und | F4: Quantidade | H4: Valor Unitário | J4: Total | M4: Peso | N4: Valor Acumulado | O4: Peso Acumulado
F5: Operativa | G5: Improdutiva | H5: Operativa | I5: Improdutiva | J5: Operativa | K5: Improdutiva | L5: Geral
A6: 00004385 | B6: SINAPI | C6: PARALELEPIPEDO GRANITICO OU BASALTICO, PARA PAVIMENTACAO, SEM FRETE (VARIACAO REGIONAL DE PECAS POR M2) | D6: Material | E6: MIL | F6: 138,9296700 | H6: 934,75 | J6: 129.864,51 | L6: 129864.509 | M6: 13,99% | N6: 129864.509 | O6: 13,99%
A7: 00004221 | B7: SINAPI | C7: OLEO DIESEL COMBUSTIVEL COMUM | D7: Material | E7: L | F7: 15.972,2525034 | H7: 7,36 | J7: 117.555,78 | L7: 117555.7784 | M7: 12,66% | N7: 247420.2875 | O7: 26,65%
A8: 00004059 | B8: SINAPI | C8: MEIO-FIO OU GUIA DE CONCRETO, PRE-MOLDADO, COMP 1 M, *30 X 12/15* CM (H X L1/L2) | D8: Material | E8: M | F8: 1.889,4000000 | H8: 53,69 | J8: 101.441,89 | L8: 101441.886 | M8: 10,93% | N8: 348862.1735 | O8: 37,57%
A9: 00037758 | B9: SINAPI | C9: CAMINHAO TRUCADO, PESO BRUTO TOTAL 23000 KG, CARGA UTIL MAXIMA 15285 KG, DISTANCIA ENTRE EIXOS 4,80 M, POTENCIA 326 CV (INCLUI CABINE E CHASSI, NAO INCLUI CARROCERIA) | D9: Equipamento | E9: UN | F9: 0,0928583 | H9: 862.563,88 | J9: 80.096,22 | L9: 80096.21554 | M9: 8,63% | N9: 428958.389 | O9: 46,20%
A10: 00000367 | B10: SINAPI | C10: AREIA GROSSA - POSTO JAZIDA/FORNECEDOR (RETIRADO NA JAZIDA, SEM TRANSPORTE) | D10: Material | E10: m³ | F10: 479,9388600 | H10: 116,78 | J10: 56.047,26 | L10: 56047.26007 | M10: 6,04% | N10: 485005.6491 | O10: 52,24%
A11: 00006111 | B11: SINAPI | C11: SERVENTE DE OBRAS | D11: Mão de Obra | E11: H | F11: 3.308,3619692 | H11: 16,75 | J11: 55.415,06 | L11: 55415.06298 | M11: 5,97% | N11: 540420.7121 | O11: 58,21%
A12: 00034492 | B12: SINAPI | C12: CONCRETO USINADO BOMBEAVEL, CLASSE DE RESISTENCIA C20, COM BRITA 0 E 1, SLUMP = 100 +/- 20 MM, EXCLUI SERVICO DE BOMBEAMENTO (NBR 8953) | D12: Material | E12: m³ | F12: 70,6880000 | H12: 582,48 | J12: 41.174,35 | L12: 41174.34624 | M12: 4,43% | N12: 581595.0583 | O12: 62,64%
A13: 00001379 | B13: SINAPI | C13: CIMENTO PORTLAND COMPOSTO CP II-32 | D13: Material | E13: KG | F13: 43.189,0210174 | H13: 0,92 | J13: 39.733,90 | L13: 39733.89934 | M13: 4,28% | N13: 621328.9576 | O13: 66,92%
A14: 00004759 | B14: SINAPI | C14: CALCETEIRO (HORISTA) | D14: Mão de Obra | E14: H | F14: 1.715,3178541 | H14: 22,01 | J14: 37.754,15 | L14: 37754.14597 | M14: 4,07% | N14: 659083.1036 | O14: 70,99%
A15: 00010646 | B15: SINAPI | C15: ROLO COMPACTADOR VIBRATORIO DE UM CILINDRO, ACO LISO, POTENCIA 80 HP, PESO OPERACIONAL MAXIMO 8,1 T, IMPACTO DINAMICO 16,15/9,5 T, LARGURA TRABALHO 1,68 M | D15: Equipamento | E15: UN | F15: 0,0390063 | H15: 697.266,77 | J15: 27.197,80 | L15: 27197.79681 | M15: 2,93% | N15: 686280.9004 | O15: 73,92%
A16: 00020020 | B16: SINAPI | C16: MOTORISTA DE CAMINHAO-BASCULANTE | D16: Mão de Obra | E16: H | F16: 941,2504700 | H16: 22,87 | J16: 21.526,40 | L16: 21526.39825 | M16: 2,32% | N16: 707807.2987 | O16: 76,24%
A17: 00037370 | B17: SINAPI | C17: ALIMENTACAO - HORISTA (COLETADO CAIXA - ENCARGOS COMPLEMENTARES) | D17: Outros | E17: H | F17: 7.725,1622243 | H17: 2,69 | J17: 20.780,69 | L17: 20780.68638 | M17: 2,24% | N17: 728587.985 | O17: 78,47%
A18: 00004750 | B18: SINAPI | C18: PEDREIRO (HORISTA) | D18: Mão de Obra | E18: H | F18: 890,3478350 | H18: 22,01 | J18: 19.596,56 | L18: 19596.55585 | M18: 2,11% | N18: 748184.5409 | O18: 80,58%
A19: 00002706 | B19: SINAPI | C19: ENGENHEIRO CIVIL DE OBRA JUNIOR | D19: Mão de Obra | E19: H | F19: 122,0388000 | H19: 146,66 | J19: 17.898,21 | L19: 17898.21041 | M19: 1,93% | N19: 766082.7513 | O19: 82,51%
A20: 00037372 | B20: SINAPI | C20: EXAMES - HORISTA (COLETADO CAIXA - ENCARGOS COMPLEMENTARES) | D20: Outros | E20: H | F20: 9.314,6321543 | H20: 1,62 | J20: 15.089,70 | L20: 15089.70409 | M20: 1,63% | N20: 781172.4554 | O20: 84,14%
A21: 2789 | B21: ORSE | C21: Veículo leve - pick up (97kw) h | D21: Equipamento | E21: un | F21: 1.200,0000000 | H21: 12,55 | J21: 15.060,00 | L21: 15060 | M21: 1,62% | N21: 796232.4554 | O21: 85,76%
A22: 00040943 | B22: SINAPI | C22: TECNICO EM SEGURANCA DO TRABALHO (HORISTA) | D22: Mão de Obra | E22: H | F22: 489,9360000 | H22: 30,39 | J22: 14.889,16 | L22: 14889.15504 | M22: 1,60% | N22: 811121.6104 | O22: 87,36%
A23: 00000370 | B23: SINAPI | C23: AREIA MEDIA - POSTO JAZIDA/FORNECEDOR (RETIRADO NA JAZIDA, SEM TRANSPORTE) | D23: Material | E23: m³ | F23: 126,5739407 | H23: 115,28 | J23: 14.591,44 | L23: 14591.44388 | M23: 1,57% | N23: 825713.0543 | O23: 88,93%
A24: 00004083 | B24: SINAPI | C24: ENCARREGADO GERAL DE OBRAS (HORISTA) | D24: Mão de Obra | E24: H | F24: 491,7216000 | H24: 27,81 | J24: 13.674,78 | L24: 13674.7777 | M24: 1,47% | N24: 839387.832 | O24: 90,41%
A25: 00004238 | B25: SINAPI | C25: OPERADOR DE ROLO COMPACTADOR | D25: Mão de Obra | E25: H | F25: 569,5374670 | H25: 20,99 | J25: 11.954,59 | L25: 11954.59143 | M25: 1,29% | N25: 851342.4234 | O25: 91,70%
A26: 00037734 | B26: SINAPI | C26: CACAMBA METALICA BASCULANTE COM CAPACIDADE DE 10 M3 (INCLUI MONTAGEM, NAO INCLUI CAMINHAO) | D26: Material | E26: UN | F26: 0,1309578 | H26: 90.248,94 | J26: 11.818,80 | L26: 11818.80263 | M26: 1,27% | N26: 863161.2261 | O26: 92,97%
A27: 00002350 | B27: SINAPI | C27: AUXILIAR DE ESCRITORIO (HORISTA) | D27: Mão de Obra | E27: H | F27: 482,8128000 | H27: 17,41 | J27: 8.405,77 | L27: 8405.770848 | M27: 0,91% | N27: 871566.9969 | O27: 93,87%
A28: 13587 | B28: ORSE | C28: Projeto de Pavimentação Km | D28: Serviços | E28: Km | F28: 1,0000000 | H28: 7.159,65 | J28: 7.159,65 | L28: 7159.65 | M28: 0,77% | N28: 878726.6469 | O28: 94,64%
A29: 00037371 | B29: SINAPI | C29: TRANSPORTE - HORISTA (COLETADO CAIXA - ENCARGOS COMPLEMENTARES) | D29: Serviços | E29: H | F29: 7.725,1622243 | H29: 0,72 | J29: 5.562,12 | L29: 5562.116801 | M29: 0,60% | N29: 884288.7637 | O29: 95,24%
A30: 00043491 | B30: SINAPI | C30: EPI - FAMILIA SERVENTE - HORISTA (ENCARGOS COMPLEMENTARES - COLETADO CAIXA) | D30: Equipamento | E30: H | F30: 3.229,4976367 | H30: 1,61 | J30: 5.199,49 | L30: 5199.491195 | M30: 0,56% | N30: 889488.2549 | O30: 95,80%
A31: 00004813 | B31: SINAPI | C31: PLACA DE OBRA (PARA CONSTRUCAO CIVIL) EM CHAPA GALVANIZADA *N. 22*, ADESIVADA, DE *2,4 X 1,2* M (SEM POSTES PARA FIXACAO) | D31: Material | E31: m² | F31: 15,9600000 | H31: 303,37 | J31: 4.841,79 | L31: 4841.7852 | M31: 0,52% | N31: 894330.0401 | O31: 96,33%
A32: 00037666 | B32: SINAPI | C32: OPERADOR DE BETONEIRA ESTACIONARIA / MISTURADOR | D32: Mão de Obra | E32: H | F32: 296,5335074 | H32: 14,46 | J32: 4.287,87 | L32: 4287.874517 | M32: 0,46% | N32: 898617.9146 | O32: 96,79%
A33: 00043489 | B33: SINAPI | C33: EPI - FAMILIA PEDREIRO - HORISTA (ENCARGOS COMPLEMENTARES - COLETADO CAIXA) | D33: Equipamento | E33: H | F33: 2.563,7687092 | H33: 1,50 | J33: 3.845,65 | L33: 3845.653064 | M33: 0,41% | N33: 902463.5677 | O33: 97,20%
A34: 00004222 | B34: SINAPI | C34: GASOLINA COMUM | D34: Material | E34: L | F34: 508,1648331 | H34: 6,97 | J34: 3.541,91 | L34: 3541.908887 | M34: 0,38% | N34: 906005.4766 | O34: 97,58%
A35: 00006212 | B35: SINAPI | C35: TABUA *2,5 X 30 CM EM PINUS, MISTA OU EQUIVALENTE DA REGIAO - BRUTA | D35: Material | E35: M | F35: 156,6040000 | H35: 22,24 | J35: 3.482,87 | L35: 3482.87296 | M35: 0,38% | N35: 909488.3495 | O35: 97,96%
A36: 00043465 | B36: SINAPI | C36: FERRAMENTAS - FAMILIA PEDREIRO - HORISTA (ENCARGOS COMPLEMENTARES - COLETADO CAIXA) | D36: Equipamento | E36: H | F36: 2.563,7687092 | H36: 0,99 | J36: 2.538,13 | L36: 2538.131022 | M36: 0,27% | N36: 912026.4806 | O36: 98,23%
A37: 00043467 | B37: SINAPI | C37: FERRAMENTAS - FAMILIA SERVENTE - HORISTA (ENCARGOS COMPLEMENTARES - COLETADO CAIXA) | D37: Equipamento | E37: H | F37: 3.229,4976367 | H37: 0,74 | J37: 2.389,83 | L37: 2389.828251 | M37: 0,26% | N37: 914416.3088 | O37: 98,49%
A38: 00043488 | B38: SINAPI | C38: EPI - FAMILIA OPERADOR ESCAVADEIRA - HORISTA (ENCARGOS COMPLEMENTARES - COLETADO CAIXA) | D38: Equipamento | E38: H | F38: 1.837,6275759 | H38: 1,04 | J38: 1.911,13 | L38: 1911.132679 | M38: 0,21% | N38: 916327.4415 | O38: 98,69%
A39: 00004783 | B39: SINAPI | C39: PINTOR (HORISTA) | D39: Mão de Obra | E39: H | F39: 85,7185073 | H39: 22,01 | J39: 1.886,66 | L39: 1886.664346 | M39: 0,20% | N39: 918214.1058 | O39: 98,90%
A40: 00004517 | B40: SINAPI | C40: SARRAFO *2,5 X 7,5* CM EM PINUS, MISTA OU EQUIVALENTE DA REGIAO - BRUTA | D40: Material | E40: M | F40: 380,3267602 | H40: 4,69 | J40: 1.783,73 | L40: 1783.732505 | M40: 0,19% | N40: 919997.8383 | O40: 99,09%
A41: 00004262 | B41: SINAPI | C41: PA CARREGADEIRA SOBRE RODAS, POTENCIA LIQUIDA 128 HP, CAPACIDADE DA CACAMBA DE 1,7 A 2,8 M3, PESO OPERACIONAL MAXIMO DE 11632 KG | D41: Equipamento | E41: UN | F41: 0,0021628 | H41: 743.268,75 | J41: 1.607,54 | L41: 1607.541653 | M41: 0,17% | N41: 921605.38 | O41: 99,26%
A42: 00004090 | B42: SINAPI | C42: MOTONIVELADORA POTENCIA BASICA LIQUIDA (PRIMEIRA MARCHA) 125 HP , PESO BRUTO 13843 KG, LARGURA DA LAMINA DE 3,7 M | D42: Equipamento | E42: UN | F42: 0,0007512 | H42: 1.334.850,00 | J42: 1.002,74 | L42: 1002.73932 | M42: 0,11% | N42: 922608.1193 | O42: 99,37%
A43: 00043482 | B43: SINAPI | C43: EPI - FAMILIA ALMOXARIFE - HORISTA (ENCARGOS COMPLEMENTARES - COLETADO CAIXA) | D43: Equipamento | E43: H | F43: 960,0000000 | H43: 0,95 | J43: 912,00 | L43: 912 | M43: 0,10% | N43: 923520.1193 | O43: 99,47%
A44: 00043487 | B44: SINAPI | C44: EPI - FAMILIA ENCARREGADO GERAL - HORISTA (ENCARGOS COMPLEMENTARES - COLETADO CAIXA) | D44: Equipamento | E44: H | F44: 480,0000000 | H44: 1,51 | J44: 724,80 | L44: 724.8 | M44: 0,08% | N44: 924244.9193 | O44: 99,55%
A45: 00011161 | B45: SINAPI | C45: CAL HIDRATADA PARA PINTURA | D45: Material | E45: KG | F45: 199,2800000 | H45: 2,42 | J45: 482,26 | L45: 482.2576 | M45: 0,05% | N45: 924727.1769 | O45: 99,60%
A46: 00044061 | B46: SINAPI | C46: CAMINHAO TRUCADO, PESO BRUTO TOTAL 23000 KG, CARGA UTIL MAXIMA 16540 KG, DISTANCIA ENTRE EIXOS 4,80 M, POTENCIA 256 CV (INCLUI CABINE E CHASSI, NAO INCLUI CARROCERIA) | D46: Equipamento | E46: UN | F46: 0,0004736 | H46: 818.023,48 | J46: 387,42 | L46: 387.4159201 | M46: 0,04% | N46: 925114.5928 | O46: 99,64%
A47: 00004248 | B47: SINAPI | C47: OPERADOR DE PA CARREGADEIRA | D47: Mão de Obra | E47: H | F47: 18,9952897 | H47: 19,79 | J47: 375,92 | L47: 375.9167832 | M47: 0,04% | N47: 925490.5096 | O47: 99,68%
A48: 00037373 | B48: SINAPI | C48: SEGURO - HORISTA (COLETADO CAIXA - ENCARGOS COMPLEMENTARES) | D48: Taxas | E48: H | F48: 9.314,6321543 | H48: 0,04 | J48: 372,59 | L48: 372.5852862 | M48: 0,04% | N48: 925863.0949 | O48: 99,72%
A49: 00002355 | B49: SINAPI | C49: DESENHISTA DETALHISTA (HORISTA) | D49: Mão de Obra | E49: H | F49: 8,4649427 | H49: 42,94 | J49: 363,48 | L49: 363.4846395 | M49: 0,04% | N49: 926226.5795 | O49: 99,76%
A50: 00004509 | B50: SINAPI | C50: SARRAFO *2,5 X 10* CM EM PINUS, MISTA OU EQUIVALENTE DA REGIAO - BRUTA | D50: Material | E50: M | F50: 51,2044680 | H50: 6,80 | J50: 348,19 | L50: 348.1903824 | M50: 0,04% | N50: 926574.7699 | O50: 99,80%
A51: 00004239 | B51: SINAPI | C51: OPERADOR DE MOTONIVELADORA | D51: Mão de Obra | E51: H | F51: 8,7135876 | H51: 35,32 | J51: 307,76 | L51: 307.763914 | M51: 0,03% | N51: 926882.5338 | O51: 99,83%
A52: 00000244 | B52: SINAPI | C52: AUXILIAR DE TOPOGRAFO (HORISTA) | D52: Mão de Obra | E52: H | F52: 10,6256990 | H52: 21,19 | J52: 225,16 | L52: 225.1585618 | M52: 0,02% | N52: 927107.6924 | O52: 99,86%
A53: 00001213 | B53: SINAPI | C53: CARPINTEIRO DE FORMAS (HORISTA) | D53: Mão de Obra | E53: H | F53: 9,4526626 | H53: 22,01 | J53: 208,05 | L53: 208.0531038 | M53: 0,02% | N53: 927315.7455 | O53: 99,88%
A54: 00043466 | B54: SINAPI | C54: FERRAMENTAS - FAMILIA PINTOR - HORISTA (ENCARGOS COMPLEMENTARES - COLETADO CAIXA) | D54: Equipamento | E54: H | F54: 84,2864800 | H54: 2,39 | J54: 201,44 | L54: 201.4446872 | M54: 0,02% | N54: 927517.1902 | O54: 99,90%
A55: 00001527 | B55: SINAPI | C55: CONCRETO USINADO BOMBEAVEL, CLASSE DE RESISTENCIA C25, BRITA 0 E 1, SLUMP = 100 +/- 20 MM, COM BOMBEAMENTO (DISPONIBILIZACAO DE BOMBA), SEM O LANCAMENTO (NBR 8953) | D55: Material | E55: m³ | F55: 0,2964246 | H55: 648,80 | J55: 192,32 | L55: 192.3202805 | M55: 0,02% | N55: 927709.5105 | O55: 99,92%
A56: 00007595 | B56: SINAPI | C56: NIVELADOR (HORISTA) | D56: Mão de Obra | E56: H | F56: 10,6256990 | H56: 17,95 | J56: 190,73 | L56: 190.731297 | M56: 0,02% | N56: 927900.2418 | O56: 99,94%
A57: 00006204 | B57: SINAPI | C57: SARRAFO DE MADEIRA NAO APARELHADA *2,5 X 15* CM, MACARANDUBA, ANGELIM OU EQUIVALENTE DA REGIAO | D57: Material | E57: M | F57: 12,1500311 | H57: 14,93 | J57: 181,40 | L57: 181.3999643 | M57: 0,02% | N57: 928081.6417 | O57: 99,96%
A58: 00004093 | B58: SINAPI | C58: MOTORISTA DE CAMINHAO | D58: Mão de Obra | E58: H | F58: 8,0468800 | H58: 22,01 | J58: 177,11 | L58: 177.1118288 | M58: 0,02% | N58: 928258.7536 | O58: 99,98%
A59: 00043490 | B59: SINAPI | C59: EPI - FAMILIA PINTOR - HORISTA (ENCARGOS COMPLEMENTARES - COLETADO CAIXA) | D59: Equipamento | E59: H | F59: 84,2864800 | H59: 2,09 | J59: 176,16 | L59: 176.1587432 | M59: 0,02% | N59: 928434.9123 | O59: 100,00%
A60: 00010535 | B60: SINAPI | C60: BETONEIRA CAPACIDADE NOMINAL 400 L, CAPACIDADE DE MISTURA 280 L, MOTOR ELETRICO TRIFASICO 220/380 V POTENCIA 2 CV, SEM CARREGADOR | D60: Equipamento | E60: UN | F60: 0,0267799 | H60: 6.188,24 | J60: 165,72 | L60: 165.7204484 | M60: 0,02% | N60: 928600.6328 | O60: 100,02%
A61: 00007640 | B61: SINAPI | C61: TRATOR DE PNEUS COM POTENCIA DE 85 CV, TRACAO 4 X 4, PESO COM LASTRO DE 4675 KG | D61: Equipamento para Aquisição Permanente | E61: UN | F61: 0,0005036 | H61: 301.184,63 | J61: 151,68 | L61: 151.6765797 | M61: 0,02% | N61: 928752.3093 | O61: 100,03%
A62: 00004491 | B62: SINAPI | C62: PONTALETE *7,5 X 7,5* CM EM PINUS, MISTA OU EQUIVALENTE DA REGIAO - BRUTA | D62: Material | E62: M | F62: 10,8905829 | H62: 13,40 | J62: 145,93 | L62: 145.9338109 | M62: 0,02% | N62: 928898.2432 | O62: 100,05%
A63: 00001358 | B63: SINAPI | C63: CHAPA/PAINEL DE MADEIRA COMPENSADA RESINADA (MADEIRITE RESINADO ROSA) PARA FORMA DE CONCRETO, DE 2200 x 1100 MM, E = 17 MM | D63: Material | E63: m² | F63: 1,5138013 | H63: 79,18 | J63: 119,86 | L63: 119.8627869 | M63: 0,01% | N63: 929018.1059 | O63: 100,06%
A64: 00007340 | B64: SINAPI | C64: IMUNIZANTE PARA MADEIRA, INCOLOR | D64: Material | E64: L | F64: 2,5990860 | H64: 45,70 | J64: 118,78 | L64: 118.7782302 | M64: 0,01% | N64: 929136.8842 | O64: 100,07%
A65: 00002705 | B65: SINAPI | C65: ENERGIA ELETRICA ATE 2000 KWH INDUSTRIAL, SEM DEMANDA | D65: Material | E65: KWH | F65: 86,0713944 | H65: 1,31 | J65: 112,75 | L65: 112.7535267 | M65: 0,01% | N65: 929249.6377 | O65: 100,09%
A66: 00043486 | B66: SINAPI | C66: EPI - FAMILIA ENGENHEIRO CIVIL - HORISTA (ENCARGOS COMPLEMENTARES - COLETADO CAIXA) | D66: Equipamento | E66: H | F66: 120,0000000 | H66: 0,89 | J66: 106,80 | L66: 106.8 | M66: 0,01% | N66: 929356.4377 | O66: 100,10%
A67: 00004095 | B67: SINAPI | C67: MOTORISTA DE CARRO DE PASSEIO | D67: Mão de Obra | E67: H | F67: 4,2346605 | H67: 20,99 | J67: 88,89 | L67: 88.8855239 | M67: 0,01% | N67: 929445.3232 | O67: 100,11%
A68: 00004230 | B68: SINAPI | C68: OPERADOR DE MAQUINAS E TRATORES DIVERSOS (TERRAPLANAGEM) | D68: Mão de Obra | E68: H | F68: 4,4009288 | H68: 19,81 | J68: 87,18 | L68: 87.18239953 | M68: 0,01% | N68: 929532.5056 | O68: 100,12%
A69: 11424 | B69: ORSE | C69: Pelicula refletiva lentes inclusas m2 | D69: Material | E69: m² | F69: 0,4666666 | H69: 184,54 | J69: 86,12 | L69: 86.11865436 | M69: 0,01% | N69: 929618.6243 | O69: 100,13%
A70: 00043651 | B70: SINAPI | C70: MASSA ACRILICA PARA SUPERFICIES INTERNAS E EXTERNAS | D70: Material | E70: KG | F70: 13,0386460 | H70: 5,98 | J70: 77,97 | L70: 77.97110308 | M70: 0,01% | N70: 929696.5954 | O70: 100,13%
A71: 00000034 | B71: SINAPI | C71: ACO CA-50, 10,0 MM, VERGALHAO | D71: Material | E71: KG | F71: 7,1550201 | H71: 10,75 | J71: 76,92 | L71: 76.91646608 | M71: 0,01% | N71: 929773.5118 | O71: 100,14%
A72: 00043458 | B72: SINAPI | C72: FERRAMENTAS - FAMILIA ALMOXARIFE - HORISTA (ENCARGOS COMPLEMENTARES - COLETADO CAIXA) | D72: Equipamento | E72: H | F72: 960,0000000 | H72: 0,07 | J72: 67,20 | L72: 67.2 | M72: 0,01% | N72: 929840.7118 | O72: 100,15%
A73: 00013617 | B73: SINAPI | C73: PICAPE CABINE SIMPLES COM MOTOR 1.6 FLEX, CAMBIO MANUAL, POTENCIA 101/104 CV, 2 PORTAS | D73: Equipamento | E73: UN | F73: 0,0005423 | H73: 118.432,49 | J73: 64,23 | L73: 64.22593933 | M73: 0,01% | N73: 929904.9378 | O73: 100,16%
A74: 8820 | B74: ORSE | C74: Chapa de aço galvanizado nº 16 - e=1,55mm - dimensões 2,00x1,00m m2 | D74: Material | E74: un | F74: 0,3333334 | H74: 180,60 | J74: 60,20 | L74: 60.20001204 | M74: 0,01% | N74: 929965.1378 | O74: 100,16%
A75: 00037736 | B75: SINAPI | C75: TANQUE DE ACO CARBONO NAO REVESTIDO, PARA TRANSPORTE DE AGUA COM CAPACIDADE DE 10 M3, COM BOMBA CENTRIFUGA POR TOMADA DE FORCA, VAZAO MAXIMA *75* M3/H (INCLUI MONTAGEM, NAO INCLUI CAMINHAO) | D75: Material | E75: UN | F75: 0,0005768 | H75: 100.659,82 | J75: 58,06 | L75: 58.06058418 | M75: 0,01% | N75: 930023.1984 | O75: 100,17%
A76: 00043463 | B76: SINAPI | C76: FERRAMENTAS - FAMILIA ENCARREGADO GERAL - HORISTA (ENCARGOS COMPLEMENTARES - COLETADO CAIXA) | D76: Equipamento | E76: H | F76: 480,0000000 | H76: 0,12 | J76: 57,60 | L76: 57.6 | M76: 0,01% | N76: 930080.7984 | O76: 100,18%
A77: 00000032 | B77: SINAPI | C77: ACO CA-50, 6,3 MM, VERGALHAO | D77: Material | E77: KG | F77: 4,8952542 | H77: 11,34 | J77: 55,51 | L77: 55.51218263 | M77: 0,01% | N77: 930136.3106 | O77: 100,18%
A78: 00007348 | B78: SINAPI | C78: TINTA ACRILICA PREMIUM PARA PISO | D78: Material | E78: L | F78: 1,7080000 | H78: 25,07 | J78: 42,82 | L78: 42.81956 | M78: 0,00% | N78: 930179.1301 | O78: 100,19%
A79: 00043055 | B79: SINAPI | C79: ACO CA-50, 12,5 MM OU 16,0 MM, VERGALHAO | D79: Material | E79: KG | F79: 3,6870515 | H79: 9,31 | J79: 34,33 | L79: 34.32644947 | M79: 0,00% | N79: 930213.4566 | O79: 100,19%
A80: 00000378 | B80: SINAPI | C80: ARMADOR (HORISTA) | D80: Mão de Obra | E80: H | F80: 1,5474563 | H80: 22,01 | J80: 34,06 | L80: 34.05951316 | M80: 0,00% | N80: 930247.5161 | O80: 100,19%
A81: 00043059 | B81: SINAPI | C81: ACO CA-60, 4,2 MM, OU 5,0 MM, OU 6,0 MM, OU 7,0 MM, VERGALHAO | D81: Material | E81: KG | F81: 3,1994883 | H81: 10,18 | J81: 32,57 | L81: 32.57079089 | M81: 0,00% | N81: 930280.0869 | O81: 100,20%
A82: 00043653 | B82: SINAPI | C82: FUNDO SINTETICO NIVELADOR BRANCO FOSCO PARA MADEIRA | D82: Material | E82: L | F82: 0,9822384 | H82: 32,70 | J82: 32,12 | L82: 32.11919568 | M82: 0,00% | N82: 930312.2061 | O82: 100,20%
A83: 00000033 | B83: SINAPI | C83: ACO CA-50, 8,0 MM, VERGALHAO | D83: Material | E83: KG | F83: 2,4613495 | H83: 11,41 | J83: 28,08 | L83: 28.08399779 | M83: 0,00% | N83: 930340.2901 | O83: 100,20%
A84: 00043493 | B84: SINAPI | C84: EPI - FAMILIA TOPOGRAFO - HORISTA (ENCARGOS COMPLEMENTARES - COLETADO CAIXA) | D84: Equipamento | E84: H | F84: 29,4699300 | H84: 0,86 | J84: 25,34 | L84: 25.3441398 | M84: 0,00% | N84: 930365.6342 | O84: 100,21%
A85: 00001345 | B85: SINAPI | C85: CHAPA/PAINEL DE MADEIRA COMPENSADA PLASTIFICADA (MADEIRITE PLASTIFICADO) PARA FORMA DE CONCRETO, DE 2200 x 1100 MM, E = *17* MM | D85: Material | E85: m² | F85: 0,1785399 | H85: 134,09 | J85: 23,94 | L85: 23.94041519 | M85: 0,00% | N85: 930389.5746 | O85: 100,21%
A86: 10454 | B86: ORSE | C86: Ajudante-pratico/Meio-Oficial h | D86: Mão de Obra | E86: h | F86: 1,3333334 | H86: 16,86 | J86: 22,48 | L86: 22.48000112 | M86: 0,00% | N86: 930412.0546 | O86: 100,21%
A87: 00010749 | B87: SINAPI | C87: LOCACAO DE ESCORA METALICA TELESCOPICA, COM ALTURA REGULAVEL DE *1,80* A *3,20* M, COM CAPACIDADE DE CARGA DE NO MINIMO 1000 KGF (10 KN), INCLUSO TRIPE E FORCADO | D87: Equipamento | E87: MES | F87: 0,5155045 | H87: 40,38 | J87: 20,82 | L87: 20.81607171 | M87: 0,00% | N87: 930432.8707 | O87: 100,21%
A88: 00037730 | B88: SINAPI | C88: CARROCERIA FIXA ABERTA DE MADEIRA PARA TRANSPORTE GERAL DE CARGA SECA DIMENSOES APROXIMADAS 2,5 X 6,5 X 0,50 M (INCLUI MONTAGEM, NAO INCLUI CAMINHAO) | D88: Material | E88: UN | F88: 0,0005768 | H88: 33.245,73 | J88: 19,18 | L88: 19.17613706 | M88: 0,00% | N88: 930452.0468 | O88: 100,22%
A89: 00043132 | B89: SINAPI | C89: ARAME RECOZIDO 16 BWG, D = 1,65 MM (0,016 KG/M) OU 18 BWG, D = 1,25 MM (0,01 KG/M) | D89: Material | E89: KG | F89: 0,5186069 | H89: 35,79 | J89: 18,56 | L89: 18.56094095 | M89: 0,00% | N89: 930470.6078 | O89: 100,22%
A90: 00043464 | B90: SINAPI | C90: FERRAMENTAS - FAMILIA OPERADOR ESCAVADEIRA - HORISTA (ENCARGOS COMPLEMENTARES - COLETADO CAIXA) | D90: Equipamento | E90: H | F90: 1.837,6275759 | H90: 0,01 | J90: 18,38 | L90: 18.37627576 | M90: 0,00% | N90: 930488.984 | O90: 100,22%
A91: 00043483 | B91: SINAPI | C91: EPI - FAMILIA CARPINTEIRO DE FORMAS - HORISTA (ENCARGOS COMPLEMENTARES - COLETADO CAIXA) | D91: Equipamento | E91: H | F91: 9,9818225 | H91: 1,73 | J91: 17,27 | L91: 17.26855293 | M91: 0,00% | N91: 930506.2526 | O91: 100,22%
A92: 00043056 | B92: SINAPI | C92: ACO CA-50, 20,0 MM OU 25,0 MM, VERGALHAO | D92: Material | E92: KG | F92: 1,3611965 | H92: 10,73 | J92: 14,61 | L92: 14.60563845 | M92: 0,00% | N92: 930520.8582 | O92: 100,22%
A93: 00044497/SINAPI | B93: ORSE | C93: Montador de estruturas metalicas horista | D93: Mão de Obra | E93: h | F93: 0,6666666 | H93: 20,48 | J93: 13,65 | L93: 13.65333197 | M93: 0,00% | N93: 930534.5116 | O93: 100,22%
A94: 00007288 | B94: SINAPI | C94: TINTA ESMALTE SINTETICO PREMIUM FOSCO | D94: Material | E94: L | F94: 0,2574000 | H94: 49,74 | J94: 12,80 | L94: 12.803076 | M94: 0,00% | N94: 930547.3146 | O94: 100,23%
A95: 00006117 | B95: SINAPI | C95: CARPINTEIRO AUXILIAR (HORISTA) | D95: Mão de Obra | E95: H | F95: 0,6641412 | H95: 17,95 | J95: 11,92 | L95: 11.92133454 | M95: 0,00% | N95: 930559.236 | O95: 100,23%
A96: 00005065 | B96: SINAPI | C96: PREGO DE ACO POLIDO COM CABECA 10 X 10 (7/8 X 17) | D96: Material | E96: KG | F96: 0,1803480 | H96: 54,00 | J96: 9,74 | L96: 9.738792 | M96: 0,00% | N96: 930568.9748 | O96: 100,23%
A97: 00012815 | B97: SINAPI | C97: FITA CREPE ROLO DE 25 MM X 50 M | D97: Material | E97: UN | F97: 0,9200000 | H97: 10,15 | J97: 9,34 | L97: 9.338 | M97: 0,00% | N97: 930578.3128 | O97: 100,23%
A98: 00001525 | B98: SINAPI | C98: CONCRETO USINADO BOMBEAVEL, CLASSE DE RESISTENCIA C30, BRITA 0 E 1, SLUMP = 100 +/- 20 MM, COM BOMBEAMENTO (DISPONIBILIZACAO DE BOMBA), SEM O LANCAMENTO (NBR 8953) | D98: Material | E98: m³ | F98: 0,0138449 | H98: 668,75 | J98: 9,26 | L98: 9.258776875 | M98: 0,00% | N98: 930587.5716 | O98: 100,23%
A99: 00007288/SINAPI | B99: ORSE | C99: Tinta esmalte sintetico premium fosco | D99: Material | E99: l | F99: 0,1766666 | H99: 49,89 | J99: 8,81 | L99: 8.813896674 | M99: 0,00% | N99: 930596.3854 | O99: 100,23%
A100: 00004734 | B100: SINAPI | C100: SEIXO ROLADO PARA APLICACAO EM CONCRETO (POSTO PEDREIRA/FORNECEDOR, SEM FRETE) | D100: Material | E100: m³ | F100: 0,0266381 | H100: 329,35 | J100: 8,77 | L100: 8.773258235 | M100: 0,00% | N100: 930605.1587 | O100: 100,23%
A101: 00040270 | B101: SINAPI | C101: VIGA DE ESCORAMAENTO H20, DE MADEIRA, PESO DE 5,00 A 5,20 KG/M, COM EXTREMIDADES PLASTICAS | D101: Material | E101: M | F101: 0,0493430 | H101: 152,96 | J101: 7,55 | L101: 7.54750528 | M101: 0,00% | N101: 930612.7062 | O101: 100,23%
A102: 00006110/SINAPI | B102: ORSE | C102: Serralheiro (horista) | D102: Mão de Obra | E102: h | F102: 0,3333334 | H102: 22,09 | J102: 7,36 | L102: 7.363334806 | M102: 0,00% | N102: 930620.0695 | O102: 100,23%
A103: 11423 | B103: ORSE | C103: Guilhotina de bancada - (4kW) h | D103: Equipamento | E103: h | F103: 0,3333334 | H103: 18,43 | J103: 6,14 | L103: 6.143334562 | M103: 0,00% | N103: 930626.2129 | O103: 100,23%
A104: 00005069 | B104: SINAPI | C104: PREGO DE ACO POLIDO COM CABECA 17 X 27 (2 1/2 X 11) | D104: Material | E104: KG | F104: 0,2106720 | H104: 28,94 | J104: 6,10 | L104: 6.09684768 | M104: 0,00% | N104: 930632.3097 | O104: 100,24%
A105: 00043459 | B105: SINAPI | C105: FERRAMENTAS - FAMILIA CARPINTEIRO DE FORMAS - HORISTA (ENCARGOS COMPLEMENTARES - COLETADO CAIXA) | D105: Equipamento | E105: H | F105: 9,9818225 | H105: 0,59 | J105: 5,89 | L105: 5.889275275 | M105: 0,00% | N105: 930638.199 | O105: 100,24%
A106: 00006193 | B106: SINAPI | C106: TABUA NAO APARELHADA *2,5 X 20* CM, EM MACARANDUBA, ANGELIM OU EQUIVALENTE DA REGIAO - BRUTA | D106: Material | E106: M | F106: 0,3426565 | H106: 16,85 | J106: 5,77 | L106: 5.773762025 | M106: 0,00% | N106: 930643.9728 | O106: 100,24%
A107: 11421 | B107: ORSE | C107: Prensa excêntrica - (1kW) h | D107: Equipamento | E107: h | F107: 0,3333334 | H107: 16,05 | J107: 5,35 | L107: 5.35000107 | M107: 0,00% | N107: 930649.3228 | O107: 100,24%
A108: 00006114 | B108: SINAPI | C108: AJUDANTE DE ARMADOR (HORISTA) | D108: Mão de Obra | E108: H | F108: 0,2844519 | H108: 17,95 | J108: 5,11 | L108: 5.105911605 | M108: 0,00% | N108: 930654.4287 | O108: 100,24%
A109: 11422 | B109: ORSE | C109: Máquina universal de corte de chapa, de bancada, 4kw - C-6A h | D109: Equipamento | E109: h | F109: 0,3333334 | H109: 14,68 | J109: 4,89 | L109: 4.893334312 | M109: 0,00% | N109: 930659.322 | O109: 100,24%
A110: 00039017 | B110: SINAPI | C110: ESPACADOR / DISTANCIADOR CIRCULAR COM ENTRADA LATERAL, EM PLASTICO, PARA VERGALHAO *4,2 A 12,5* MM, COBRIMENTO 20 MM | D110: Material | E110: UN | F110: 17,6325944 | H110: 0,26 | J110: 4,58 | L110: 4.584474544 | M110: 0,00% | N110: 930663.9065 | O110: 100,24%
A111: 158 | B111: ORSE | C111: Almoço (Participação do empregador) un | D111: Material | E111: un | F111: 0,2476795 | H111: 16,98 | J111: 4,21 | L111: 4.20559791 | M111: 0,00% | N111: 930668.1121 | O111: 100,24%
A112: 54 | B112: ORSE | C112: Encarregado de turma - SICRO h | D112: Mão de Obra | E112: h | F112: 0,1666666 | H112: 22,18 | J112: 3,70 | L112: 3.696665188 | M112: 0,00% | N112: 930671.8088 | O112: 100,24%
A113: 00005068 | B113: SINAPI | C113: PREGO DE ACO POLIDO COM CABECA 17 X 21 (2 X 11) | D113: Material | E113: KG | F113: 0,1113820 | H113: 28,39 | J113: 3,16 | L113: 3.16213498 | M113: 0,00% | N113: 930674.9709 | O113: 100,24%
A114: 00040275 | B114: SINAPI | C114: LOCACAO DE VIGA SANDUICHE METALICA VAZADA PARA TRAVAMENTO DE PILARES, ALTURA DE *8* CM, LARGURA DE *6* CM E EXTENSAO DE 2 M | D114: Equipamento | E114: MES | F114: 0,0852040 | H114: 36,40 | J114: 3,10 | L114: 3.1014256 | M114: 0,00% | N114: 930678.0723 | O114: 100,24%
A115: 11420 | B115: ORSE | C115: Compressor de ar p/ pintura c/ filtro (2 kW) h | D115: Equipamento | E115: h | F115: 0,3333334 | H115: 7,94 | J115: 2,65 | L115: 2.646667196 | M115: 0,00% | N115: 930680.719 | O115: 100,24%
A116: 00043469 | B116: SINAPI | C116: FERRAMENTAS - FAMILIA TOPOGRAFO - HORISTA (ENCARGOS COMPLEMENTARES - COLETADO CAIXA) | D116: Equipamento | E116: H | F116: 29,4699300 | H116: 0,08 | J116: 2,36 | L116: 2.3575944 | M116: 0,00% | N116: 930683.0766 | O116: 100,24%
A117: 00005318 | B117: SINAPI | C117: DILUENTE AGUARRAS | D117: Material | E117: L | F117: 0,0803880 | H117: 29,17 | J117: 2,34 | L117: 2.34491796 | M117: 0,00% | N117: 930685.4215 | O117: 100,24%
A118: 10492 | B118: ORSE | C118: Cesta Básica un | D118: Material | E118: un | F118: 0,0109485 | H118: 212,36 | J118: 2,33 | L118: 2.32502346 | M118: 0,00% | N118: 930687.7465 | O118: 100,24%
A119: 00040287 | B119: SINAPI | C119: LOCACAO DE BARRA DE ANCORAGEM DE 0,80 A 1,20 M DE EXTENSAO, COM ROSCA DE 5/8", INCLUINDO PORCA E FLANGE | D119: Equipamento | E119: MES | F119: 0,1701911 | H119: 13,40 | J119: 2,28 | L119: 2.28056074 | M119: 0,00% | N119: 930690.0271 | O119: 100,24%
A120: 00004783/SINAPI | B120: ORSE | C120: Pintor (horista) | D120: Mão de Obra | E120: h | F120: 0,1000000 | H120: 22,09 | J120: 2,21 | L120: 2.209 | M120: 0,00% | N120: 930692.2361 | O120: 100,24%
A121: 00003767 | B121: SINAPI | C121: LIXA EM FOLHA PARA PAREDE OU MADEIRA, NUMERO 120, COR VERMELHA | D121: Material | E121: UN | F121: 1,5709780 | H121: 1,11 | J121: 1,74 | L121: 1.74378558 | M121: 0,00% | N121: 930693.9799 | O121: 100,24%
A122: 10761 | B122: ORSE | C122: Refeição - café da manhã ( café com leite e dois pães com manteiga) un | D122: Serviços | E122: un | F122: 0,2476795 | H122: 6,06 | J122: 1,50 | L122: 1.50093777 | M122: 0,00% | N122: 930695.4808 | O122: 100,24%
A123: 00040304 | B123: SINAPI | C123: PREGO DE ACO POLIDO COM CABECA DUPLA 17 X 27 (2 1/2 X 11) | D123: Material | E123: KG | F123: 0,0422288 | H123: 35,04 | J123: 1,48 | L123: 1.479697152 | M123: 0,00% | N123: 930696.9605 | O123: 100,24%
A124: 00040271 | B124: SINAPI | C124: LOCACAO DE APRUMADOR METALICO DE PILAR, COM ALTURA E ANGULO REGULAVEIS, EXTENSAO DE *1,50* A *2,80* M | D124: Equipamento | E124: MES | F124: 0,0424936 | H124: 34,82 | J124: 1,48 | L124: 1.479627152 | M124: 0,00% | N124: 930698.4401 | O124: 100,24%
A125: 00043462 | B125: SINAPI | C125: FERRAMENTAS - FAMILIA ENGENHEIRO CIVIL - HORISTA (ENCARGOS COMPLEMENTARES - COLETADO CAIXA) | D125: Equipamento | E125: H | F125: 120,0000000 | H125: 0,01 | J125: 1,20 | L125: 1.2 | M125: 0,00% | N125: 930699.6401 | O125: 100,24%
A126: 2378 | B126: ORSE | C126: Vale transporte un | D126: Material | E126: un | F126: 0,1973810 | H126: 5,46 | J126: 1,08 | L126: 1.07770026 | M126: 0,00% | N126: 930700.7178 | O126: 100,24%
A127: 941 | B127: ORSE | C127: Fardamento com mangas curta un | D127: Material | E127: un | F127: 0,0036495 | H127: 230,98 | J127: 0,84 | L127: 0.84296151 | M127: 0,00% | N127: 930701.5608 | O127: 100,24%
A128: 10517 | B128: ORSE | C128: Exames admissionais/demissionais (checkup) cj | D128: Serviços | E128: cj | F128: 0,0009732 | H128: 364,05 | J128: 0,35 | L128: 0.35429346 | M128: 0,00% | N128: 930701.9151 | O128: 100,24%
A129: 00002692 | B129: SINAPI | C129: DESMOLDANTE PROTETOR PARA FORMAS DE MADEIRA, DE BASE OLEOSA EMULSIONADA EM AGUA | D129: Material | E129: L | F129: 0,0240928 | H129: 10,32 | J129: 0,25 | L129: 0.248637696 | M129: 0,00% | N129: 930702.1637 | O129: 100,24%
A130: 11281 | B130: ORSE | C130: Bolsa de lona para ferramentas 40 x 30 x 20cm un | D130: Material | E130: un | F130: 0,0005333 | H130: 433,81 | J130: 0,23 | L130: 0.231350873 | M130: 0,00% | N130: 930702.3951 | O130: 100,24%
A131: 10362 | B131: ORSE | C131: Seguro de vida e acidente em grupo un | D131: Serviços | E131: un | F131: 0,0109485 | H131: 15,21 | J131: 0,17 | L131: 0.166526685 | M131: 0,00% | N131: 930702.5616 | O131: 100,24%
A132: 00012893/SINAPI | B132: ORSE | C132: Bota de seguranca com biqueira de aco e colarinho acolchoado | D132: Material | E132: par | F132: 0,0019465 | H132: 78,63 | J132: 0,15 | L132: 0.153053295 | M132: 0,00% | N132: 930702.7146 | O132: 100,24%
A133: 11286 | B133: ORSE | C133: Macariço de solda Ref. CG201 código 010414410 carbografite un | D133: Material | E133: un | F133: 0,0002000 | H133: 483,77 | J133: 0,10 | L133: 0.096754 | M133: 0,00% | N133: 930702.8114 | O133: 100,24%
A134: 10599 | B134: ORSE | C134: Protetor solar fps 30 com 120ml un | D134: Material | E134: un | F134: 0,0043795 | H134: 21,84 | J134: 0,10 | L134: 0.09564828 | M134: 0,00% | N134: 930702.907 | O134: 100,24%
A135: 00012892/SINAPI | B135: ORSE | C135: Luva raspa de couro, cano curto (punho *7* cm) | D135: Material | E135: par | F135: 0,0055960 | H135: 14,74 | J135: 0,08 | L135: 0.08248504 | M135: 0,00% | N135: 930702.9895 | O135: 100,24%
A136: 11285 | B136: ORSE | C136: Fonte inversora de solda WMI 140ED 220V - BAMBOZZI - WMI- 140ED un | D136: Material | E136: un | F136: 0,0000667 | H136: 1.018,12 | J136: 0,07 | L136: 0.067908604 | M136: 0,00% | N136: 930703.0574 | O136: 100,24%
A137: 10596 | B137: ORSE | C137: Protetor auricular un | D137: Material | E137: un | F137: 0,0109485 | H137: 5,94 | J137: 0,07 | L137: 0.06503409 | M137: 0,00% | N137: 930703.1225 | O137: 100,24%
A138: 00002711/SINAPI | B138: ORSE | C138: Carrinho de mao de aco capacidade 50 a 60 l, pneu com camara | D138: Material | E138: un | F138: 0,0002666 | H138: 223,28 | J138: 0,06 | L138: 0.059526448 | M138: 0,00% | N138: 930703.182 | O138: 100,24%
A139: 11282 | B139: ORSE | C139: Esmerilhadeira angular elétrico portátil 4 1/2" - 1000 watts - ref. G1000kB2 Black e Decker un | D139: Material | E139: un | F139: 0,0001333 | H139: 439,28 | J139: 0,06 | L139: 0.058556024 | M139: 0,00% | N139: 930703.2406 | O139: 100,24%
A140: 00014618 | B140: SINAPI | C140: SERRA CIRCULAR DE BANCADA COM MOTOR ELETRICO, POTENCIA DE *1600* W, PARA DISCO DE DIAMETRO DE 10" (250 MM) | D140: Material | E140: UN | F140: 0,0000328 | H140: 1.734,58 | J140: 0,06 | L140: 0.056894224 | M140: 0,00% | N140: 930703.2975 | O140: 100,24%
A141: 00013896 | B141: SINAPI | C141: VIBRADOR DE IMERSAO, DIAMETRO DA PONTEIRA DE *45* MM, COM MOTOR ELETRICO TRIFASICO DE 2 HP (2 CV) | D141: Equipamento | E141: UN | F141: 0,0000138 | H141: 3.886,35 | J141: 0,05 | L141: 0.05363163 | M141: 0,00% | N141: 930703.3511 | O141: 100,24%
A142: 00020247 | B142: SINAPI | C142: PREGO DE ACO POLIDO COM CABECA 15 X 15 (1 1/4 X 13) | D142: Material | E142: KG | F142: 0,0016123 | H142: 31,44 | J142: 0,05 | L142: 0.050690712 | M142: 0,00% | N142: 930703.4018 | O142: 100,24%
A143: 00005073 | B143: SINAPI | C143: PREGO DE ACO POLIDO COM CABECA 17 X 24 (2 1/4 X 11) | D143: Material | E143: KG | F143: 0,0014332 | H143: 28,94 | J143: 0,04 | L143: 0.041476808 | M143: 0,00% | N143: 930703.4433 | O143: 100,24%
A144: 11283 | B144: ORSE | C144: Selador horizontal para fita de aço 1" un | D144: Material | E144: un | F144: 0,0000667 | H144: 587,10 | J144: 0,04 | L144: 0.03915957 | M144: 0,00% | N144: 930703.4824 | O144: 100,24%
A145: 11273 | B145: ORSE | C145: Esquadro de alumínio para soldagem de peças, com duas morsas, 35 x 35 x 4,5cm, marca Black Jack un | D145: Material | E145: un | F145: 0,0001333 | H145: 265,64 | J145: 0,04 | L145: 0.035409812 | M145: 0,00% | N145: 930703.5178 | O145: 100,24%
A146: 00012895/SINAPI | B146: ORSE | C146: Capacete de seguranca aba frontal com suspensao de polietileno, sem jugular (classe b) | D146: Material | E146: un | F146: 0,0014598 | H146: 16,38 | J146: 0,02 | L146: 0.023911524 | M146: 0,00% | N146: 930703.5417 | O146: 100,24%
A147: 11284 | B147: ORSE | C147: Cavalete de ferro nº 1 un | D147: Material | E147: un | F147: 0,0001333 | H147: 146,49 | J147: 0,02 | L147: 0.019527117 | M147: 0,00% | N147: 930703.5613 | O147: 100,24%
A148: 11277 | B148: ORSE | C148: Alicate de pressão para solda de chapa 18" (460mm), Ref.138 Z Gedore un | D148: Material | E148: un | F148: 0,0001333 | H148: 133,87 | J148: 0,02 | L148: 0.017844871 | M148: 0,00% | N148: 930703.5791 | O148: 100,24%
A149: 1651 | B149: ORSE | C149: Óculos branco proteção pr | D149: Material | E149: pr | F149: 0,0019465 | H149: 7,70 | J149: 0,01 | L149: 0.01498805 | M149: 0,00% | N149: 930703.5941 | O149: 100,24%
A150: 11251 | B150: ORSE | C150: Pincel de seda 2" un | D150: Material | E150: un | F150: 0,0004500 | H150: 32,64 | J150: 0,01 | L150: 0.014688 | M150: 0,00% | N150: 930703.6088 | O150: 100,24%
A151: 11279 | B151: ORSE | C151: Alicate para anéis de pistão capacidade 50-100mm. ref.44044101 Tramontina ou similar un | D151: Material | E151: un | F151: 0,0001333 | H151: 107,64 | J151: 0,01 | L151: 0.014348412 | M151: 0,00% | N151: 930703.6231 | O151: 100,24%
A152: 10788 | B152: ORSE | C152: Pá quadrada un | D152: Material | E152: un | F152: 0,0002666 | H152: 44,77 | J152: 0,01 | L152: 0.011935682 | M152: 0,00% | N152: 930703.6351 | O152: 100,24%
A153: 11276 | B153: ORSE | C153: Alicate de pressão para solda tipo U, para apertar chapas, tiras e qualquer tipo de perfil. Niquelado, mordentes reforçados em aço laminadao. Corpo em chapa dobrada extra-reforçada e rebites de aço, 11" (280mm). Ref. 138 Gedore. un | D153: Material | E153: un | F153: 0,0001333 | H153: 82,89 | J153: 0,01 | L153: 0.011049237 | M153: 0,00% | N153: 930703.6461 | O153: 100,24%
A154: 00012894/SINAPI | B154: ORSE | C154: Capa para chuva em pvc com forro de poliester, com capuz (amarela ou azul) | D154: Material | E154: un | F154: 0,0004865 | H154: 21,29 | J154: 0,01 | L154: 0.010357585 | M154: 0,00% | N154: 930703.6565 | O154: 100,24%
A155: 11275 | B155: ORSE | C155: Alicate de pressão 11" un | D155: Material | E155: un | F155: 0,0001333 | H155: 75,33 | J155: 0,01 | L155: 0.010041489 | M155: 0,00% | N155: 930703.6665 | O155: 100,24%
A156: 11280 | B156: ORSE | C156: Chave Inglesa 15" ref. 012418012 carbografite un | D156: Material | E156: un | F156: 0,0001333 | H156: 73,41 | J156: 0,01 | L156: 0.009785553 | M156: 0,00% | N156: 930703.6763 | O156: 100,24%
A157: 4728 | B157: ORSE | C157: Talhadeira chata 10" Talhadeira chara 10" un | D157: Material | E157: un | F157: 0,0004000 | H157: 22,54 | J157: 0,01 | L157: 0.009016 | M157: 0,00% | N157: 930703.6853 | O157: 100,24%
A158: 11272 | B158: ORSE | C158: Alicate Climpador ( cripador ) un | D158: Material | E158: un | F158: 0,0000667 | H158: 124,50 | J158: 0,01 | L158: 0.00830415 | M158: 0,00% | N158: 930703.6936 | O158: 100,24%
A159: 11270 | B159: ORSE | C159: Martelo de solda do tipo picareta, cabo de madeira, 300x0,4x0,5mm un | D159: Material | E159: un | F159: 0,0002000 | H159: 34,76 | J159: 0,01 | L159: 0.006952 | M159: 0,00% | N159: 930703.7006 | O159: 100,24%
A160: 10583 | B160: ORSE | C160: Trincha 3" un | D160: Material | E160: un | F160: 0,0004500 | H160: 14,53 | J160: 0,01 | L160: 0.0065385 | M160: 0,00% | N160: 930703.7071 | O160: 100,24%
A161: 11278 | B161: ORSE | C161: Alicate diagonal para corte rente 5" a 8" un | D161: Material | E161: un | F161: 0,0001333 | H161: 45,62 | J161: 0,01 | L161: 0.006081146 | M161: 0,00% | N161: 930703.7132 | O161: 100,24%
A162: 4729 | B162: ORSE | C162: Marreta 1 kg com cabo un | D162: Material | E162: un | F162: 0,0001333 | H162: 38,22 | J162: 0,01 | L162: 0.005094726 | M162: 0,00% | N162: 930703.7183 | O162: 100,24%
A163: 11250 | B163: ORSE | C163: Rolo lã de carneiro 20cm un | D163: Material | E163: un | F163: 0,0002300 | H163: 21,23 | J163: 0,00 | L163: 0.0048829 | M163: 0,00% | N163: 930703.7232 | O163: 100,24%
A164: 11274 | B164: ORSE | C164: Grampo de de aperto rápido 16" Ref. 60987 Beltools un | D164: Material | E164: un | F164: 0,0002000 | H164: 22,78 | J164: 0,00 | L164: 0.004556 | M164: 0,00% | N164: 930703.7277 | O164: 100,24%
A165: 11252 | B165: ORSE | C165: Escada de aluminio de abrir com 7 degraus un | D165: Material | E165: un | F165: 0,0000100 | H165: 326,43 | J165: 0,00 | L165: 0.0032643 | M165: 0,00% | N165: 930703.731 | O165: 100,24%
A166: 10586 | B166: ORSE | C166: Torquesa un | D166: Material | E166: un | F166: 0,0000666 | H166: 44,77 | J166: 0,00 | L166: 0.002981682 | M166: 0,00% | N166: 930703.734 | O166: 100,24%
A167: 11271 | B167: ORSE | C167: Talhadeira com punho de proteção 22 x225mm ref.207206BR Belzer un | D167: Material | E167: un | F167: 0,0000667 | H167: 35,44 | J167: 0,00 | L167: 0.002363848 | M167: 0,00% | N167: 930703.7363 | O167: 100,24%
A168: 10585 | B168: ORSE | C168: Arco de serra un | D168: Material | E168: un | F168: 0,0000666 | H168: 24,14 | J168: 0,00 | L168: 0.001607724 | M168: 0,00% | N168: 930703.7379 | O168: 100,24%
A169: 4725 | B169: ORSE | C169: Espátula un | D169: Material | E169: un | F169: 0,0000400 | H169: 24,00 | J169: 0,00 | L169: 0.00096 | M169: 0,00% | N169: 930703.7389 | O169: 100,24%
A170: 4174 | B170: ORSE | C170: Desempenadeira de aço lisa, cabo madeira, ref:143, Atlas ou similar un | D170: Material | E170: un | F170: 0,0000500 | H170: 13,10 | J170: 0,00 | L170: 0.000655 | M170: 0,00% | N170: 930703.7396 | O170: 100,24%
L172: Totais por Tipo
L173: Equipamento | O173: R$ 143.829,10
L174: Equipamento para Aquisição Permanente | O174: R$ 151,68
L175: Mão de Obra | O175: R$ 209.413,98
L176: Material | O176: R$ 528.342,22
L177: Serviços | O177: R$ 12.723,79
L178: Taxas | O178: R$ 372,59
L179: Administração | O179: R$ 0,00
L180: Aluguel | O180: R$ 0,00
L181: Verba | O181: R$ 0,00
L182: Transporte | O182: R$ 0,00
L183: Franquia | O183: R$ 0,00
L184: Outros | O184: R$ 35.870,39
K186: Total sem BDI | M186: 765839.39
K187: Total do BDI | M187: 162610.26
K188: Total Geral | M188: 928449.65
A190: _______________________________________________________________ GRD / UEP 2 Setor de Engenharia
